Workbook

Sheet Ротация
A2: День 1 - ый | C2: День 2- ой | E2: День 3 - ий | G2: День 4 - ый | I2: День 5 - ый | K2: День 6 - ой | M2: День 7 - ой
A3: ЗАВТРАК
A4: Бутерброд с маслом | B4: 30/10 | C4: Бутерброд с сыром,с маслом | D4: 30/15/10 | E4: Бутерброд с маслом | F4: 30/10 | G4: Бутерброд с сыром,с маслом | H4: 30/15/10 | I4: Бутерброд с маслом | J4: 30/10 | K4: Бутерброд с маслом | L4: 30/10 | M4: Бутерброд с сыром,с маслом | N4: 30/15/10
A5: Каша пшённая молочная с маслом сливочным | B5: 200/5-150/4 | C5: Каша геркулесовая молочная с маслом сливочным | D5: 200/5-180/5 | E5: Запеканка творожная с молоком сгущенным | F5: 170/30-120/30 | G5: Каша "Дружба" молочная | H5: 220/5-180/4 | I5: Омлет натуральный/ Каша манная молочная | J5: 200-150 (200/5-180/4) | K5: Каша кукурузная молочная | L5: 180-150 | M5: Запеканка творожная с молоком сгущенным | N5: 170/30-120/30
C6: Яйцо отварное | D6: 40 | E6: Блины с маслом сливочным | F6: 45/5-45/5 | K6: Блины с маслом сливочным | L6: 45/5-45/5
A7: Чай с молоком ,с сахаром | B7: 150/40/10-150/40/10 | C7: Какао с молоком(сахар)10 | D7: 200-200 | E7: Чай с сахаром | F7: 190/10-190/10 | G7: Кофейный напиток с молоком (сахар 10) | H7: 200-200 | I7: Чай с молоком ,с сахаром | J7: 150/40/10-150/40/10 | K7: Какао с молоком (сахар 10) | L7: 200-200 | M7: Чай с сахаром с лимоном | N7: 185/10/5-185/10/5
A8: Фрукты свежие (Яблоки) | B8: 120-120 | E8: Фрукты свежие (Банан) | F8: 120-120 | G8: Фрукты свежие (Яблоки) | H8: 120-120 | I8: Фрукты свежие (яблоки) | J8: 120-120 | K8: Фрукты свежие (банан) | L8: 120-120 | M8: Фрукты свежие (Яблоки) | N8: 120-120
A9: Батон | B9: 50-50 | C9: Батон высший сорт | D9: 50-50 | E9: Батон высший сорт | F9: 50-50 | G9: Батон высший сорт | H9: 50-50 | I9: Батон высший сорт | J9: 50-50 | K9: Батон высший сорт | L9: 50-50 | M9: Батон высший сорт | N9: 50-50
A10: 2-ой ЗАВТРАК
A11: Печенье | B11: 35-30 | C11: Нектар плодовый (разливной) | D11: 200-200 | E11: Крекер | F11: 20-20
A12: Молоко кипяченное | B12: 200-200 | E12: Молоко кипяченное | F12: 200-200 | G12: Катык | H12: 200-200 | I12: Нектар плодовый (разливной) | J12: 200-200 | K12: Ряженка | L12: 200-200 | M12: Молоко кипяченное | N12: 200-200
A13: ОБЕД
A14: Салат из моркови | B14: 100-60 | C14: Салат из белокочанной капусты с яблоками | D14: 100-60 | E14: Салат из отварной свеклы с маслом растительным | F14: 100-60 | G14: Зеленый горошек к/с доп.гарнир | H14: 50 | I14: Салат из свежей капусты с морковью | J14: 100-60 | K14: Салат из моркови | L14: 100-60 | M14: Огурцы соленые (доп гарнир) | N14: 50-30
A15: Щи из свежей капусты с картофелем, мясными фрикадельками,со сметаной | B15: 250/22/10-200/22/10 | C15: Суп картофельный с крупой с мясом птицы | D15: 250/10-200/10 | E15: Рассольник ленинградский с мясными фрикадельками,со сметаной | F15: 250/22/10-200/22/10 | G15: Суп - лапша домашняя на курином бульоне с мясом птицы | H15: 250/10-200/10 | I15: Суп картофельный с мясными фрикадельками | J15: 250/22-200/22 | K15: Суп из овощей на курином бульоне с мясными фрикадельками , со сметаной | L15: 250/22/10-200/22/10 | M15: Суп гороховый с фрикадельками из птицы и гренками | N15: 250/11/10-200/11/10
A16: Жаркое по - домашнему с куриной грудкой | B16: 50/200-50/150 | C16: Гуляш из говядины | D16: 50/50-50/50 | E16: Рыба тушеная с овощами | F16: 100/10-80/10 | G16: Овощи тушеные с говяжиьм фаршем | H16: 50/200-50/150 | I16: Биточки рыбные из минтая | J16: 100-90 | K16: Плов из куриных грудок | L16: 250-250 | M16: Котлета из говядины с маслом сливочным | N16: 100/3-90/3
C17: Макаронные изделия отварные | D17: 180-150 | E17: Пюре картофельное с капустой тушеной (доп.гарнир) | F17: 200/30-150/30 | I17: Макаронные изделия с овощами | J17: 180-180 | M17: Картофель запеченный дольками | N17: 200-180
A18: Нектар плодовый (разливной) | B18: 200-200 | C18: Компот из сухофруктов (сахар 10) | D18: 200-200 | E18: Напиток из шиповника (напиток из шиповника10) | F18: 200-200 | G18: Нектар плодовый (разливной) | H18: 200-200 | I18: Компот из свежих яблок (сахар 10) | J18: 200-200 | K18: Нектар плодовый (разливной) | L18: 200-200 | M18: Компот из сухофруктов (сахар 10) | N18: 200-200
A19: Хлеб ржаной | B19: 60-50 | C19: Хлеб ржаной | D19: 60-50 | E19: Хлеб ржаной | F19: 60-50 | G19: Хлеб ржаной | H19: 60-50 | I19: Хлеб ржаной | J19: 60-50 | K19: Хлеб ржаной | L19: 60-50 | M19: Хлеб ржаной | N19: 60-50
A20: Хлеб пшеничный | B20: 60-50 | C20: Хлеб пшеничный | D20: 60-50 | E20: Хлеб пшеничный | F20: 60-50 | G20: Хлеб пшеничный | H20: 60-50 | I20: Хлеб пшеничный | J20: 60-50 | K20: Хлеб пшеничный | L20: 60-50 | M20: Хлеб пшеничный | N20: 60-50

Sheet младшие
A2: День 1 - ый
A3: Наименование блюд и | C3: Масса | D3: Пищевые вещества | G3: Энергетическая | H3: В1,мг | I3: С,мг | J3: A,мкг | K3: Е,мг | L3: Ca | M3: P | N3: Mg | O3: Fe | P3: Сборник
A4: продуктов | C4: порции | G4: ценность | P4: рецептур
D5: белки | E5: жиры | F5: угл-ды | G5: Ккал
B6: ЗАВТРАК
A7: Бутерброд с маслом | C7: 30/10 | D7: 2.33 | E7: 8.12 | F7: 15.55 | G7: 144.60 | H7: 0.03 | I7: 0.00 | J7: 40.00 | K7: 0.62 | L7: 8.10 | M7: 22.50 | N7: 3.90 | O7: 0.38 | P7: №1 сб 2017 шк
A8: Каша пшённая молочная с маслом сливочным | C8: 150/4 | D8: 5.60 | E8: 6.25 | F8: 17.74 | G8: 145.05 | H8: 0.14 | I8: 0.88 | J8: 29.50 | K8: 0.12 | L8: 102.74 | M8: 137.23 | N8: 35.70 | O8: 0.92 | P8: №173 СБ шк 2017
A9: Чай с молоком, с сахаром | C9: 150/40/10 | D9: 1.46 | E9: 1.08 | F9: 11.96 | G9: 63.70 | H9: 0.02 | I9: 0.67 | J9: 8.00 | K9: 0.00 | L9: 63.02 | M9: 48.36 | N9: 12.20 | O9: 1.30 | P9: №378 СБ шк 2017
A10: Фрукты свежие (Яблоки) | C10: 120 | D10: 0.48 | E10: 0.48 | F10: 11.76 | G10: 56.40 | H10: 0.04 | I10: 12.00 | J10: 0.00 | K10: 0.24 | L10: 19.20 | M10: 13.20 | N10: 10.80 | O10: 2.64 | P10: №338 сб 2017 шк
A11: Батон | C11: 50 | D11: 3.75 | E11: 1.45 | F11: 25.70 | G11: 131.00 | H11: 0.06 | I11: 0.00 | J11: 0.00 | K11: 0.85 | L11: 9.50 | M11: 32.50 | N11: 6.50 | O11: 0.60 | P11: стр 134 табл. 6 Дели Плюс 2012г,
A12: Итого: | C12: 564 | D12: =SUM(D7:D11) -> 13.62 | E12: =SUM(E7:E11) -> 17.38 | F12: 82.71 | G12: 540.75 | H12: =SUM(H7:H11) -> 0.28 | I12: 13.55 | J12: 77.50 | K12: 1.83 | L12: 202.55 | M12: 253.79 | N12: 69.10 | O12: 5.84
B13: 2 - ой ЗАВТРАК
A14: Печенье | C14: 30 | D14: 2.59 | E14: 2.49 | F14: 13.18 | G14: 92.45 | H14: 0.05 | K14: 1.30 | L14: 9.10 | M14: 29.40 | N14: 10.50 | O14: 0.49 | P14: стр 136 табл. 6 Дели Плюс 2012г,
A15: Молоко кипяченное | C15: 200 | D15: 5.80 | E15: 5.00 | F15: 9.60 | G15: 107.00 | H15: 0.08 | I15: 2.60 | J15: 40.00 | L15: 240.00 | M15: 180.00 | N15: 28.00 | O15: 0.20 | P15: №385 СБ шк 2017
A16: Итого: | C16: 230 | D16: =SUM(D14:D15) -> 8.39 | E16: =SUM(E14:E15) -> 7.49 | F16: 22.78 | G16: 199.45 | H16: 0.13 | I16: 2.60 | J16: 40.00 | K16: 1.30 | L16: 249.10 | M16: 209.40 | N16: 38.50 | O16: 0.69
C17: =C12+C16 -> 794 | D17: =D12+D16 -> 22.01 | E17: =E12+E16 -> 24.87 | F17: 105.49 | G17: 740.20 | Q17: =G17/2350 -> 31.50% | R17: 30% (28,5-31,5)
B18: ОБЕД
A19: Салат из моркови | C19: 60 | D19: 0.74 | E19: 0.06 | F19: 10.89 | G19: 49.02 | H19: 0.03 | I19: 2.02 | J19: 0.00 | K19: 8.04 | L19: 15.46 | M19: 31.66 | N19: 21.63 | O19: 0.40 | P19: №62 сб 2017шк
A20: Щи из свежей капусты с картофелем, мясными фрикадельками, со сметаной | C20: 200/22/10 | D20: 6.82 | E20: 9.54 | F20: 16.76 | G20: 145.64 | H20: 0.06 | I20: 13.18 | J20: 22.80 | K20: 2.11 | L20: 59.99 | M20: 81.38 | N20: 23.06 | O20: 1.09 | P20: №88,105 сб 2017шк
A21: Жаркое по - домашнему с куриной грудкой | C21: 50/150 | D21: 14.33 | E21: 20.73 | F21: 29.77 | G21: 396.00 | H21: 0.11 | I21: 8.99 | J21: 29.10 | K21: 3.88 | L21: 55.70 | M21: 191.40 | N21: 43.32 | O21: 4.17 | P21: ТТК
A22: Нектар плодовый (разливной) | C22: 200 | D22: 1.00 | E22: 0.00 | F22: 20.20 | G22: 85 | H22: 0.022 | I22: 4 | J22: 0 | K22: 0.2 | L22: 14 | M22: 14 | N22: 8 | O22: 2.8 | P22: №389 сб 2017 шк
A23: Хлеб ржаной | C23: 50 | D23: 3.3 | E23: 0.6 | F23: 19.8 | G23: 99 | H23: 0.085 | I23: 0 | J23: 0 | K23: 0.7 | L23: 14.5 | M23: 75 | N23: 23.5 | O23: 1.95 | P23: стр 144 табл. 6 Дели Плюс 2012г,
A24: Хлеб пшеничный | C24: 50 | D24: 3.80 | E24: 0.40 | F24: 24.60 | G24: 117.50 | H24: 0.055 | I24: 0 | J24: 0 | K24: 0.55 | L24: 10 | M24: 32.5 | N24: 7 | O24: 0.55 | P24: стр 134 табл. 6 Дели Плюс 2012г,
A25: Итого: | C25: 792.00 | D25: =SUM(D19:D24) -> 29.99 | E25: =SUM(E19:E24) -> 31.33 | F25: =F24+F23+F22+F21+F20+F19+0.6 -> 122.61 | G25: 891.96 | H25: 0.37 | I25: 28.19 | J25: 51.90 | K25: 15.48 | L25: 169.65 | M25: 425.94 | N25: 126.51 | O25: 10.96 | Q25: =G25/2350 -> 37.96% | R25: 40% (38-42)
A26: ВСЕГО: | C26: =C12+C16+C25 -> 1586.00 | D26: =D12+D16+D25 -> 52.00 | E26: 56.20 | F26: 228.10 | G26: 1632.16 | H26: 0.78 | I26: 44.33 | J26: 169.40 | K26: 18.61 | L26: 621.30 | M26: 889.13 | N26: 234.11 | O26: 17.49 | Q26: =G26/2350 -> 69.45% | R26: 70% (66,5-73,5%)
A28: День 2- ой
A29: Наименование блюд и | C29: Масса | D29: Пищевые вещества | G29: Энергетическая | H29: В1,мг | I29: С,мг | J29: A,мкг | K29: Е,мг | L29: Ca | M29: P | N29: Mg | O29: Fe | P29: Сборник
A30: продуктов | C30: порции | G30: ценность | P30: рецептур
D31: белки | E31: жиры | F31: угл-ды | G31: Ккал
B32: ЗАВТРАК
A33: Бутерброд с сыром, с маслом | C33: 30/15/10 | D33: 6.28 | E33: 12.11 | F33: 15.55 | G33: 196.10 | H33: 0.04 | I33: 0.11 | J33: 71.50 | K33: 0.68 | L33: 158.10 | M33: 112.50 | N33: 12.15 | O33: 0.49 | P33: №3 сб 2017 шк
A34: Каша геркулесовая молочная с маслом сливочным | C34: 180/5 | D34: 4.05 | E34: 5.91 | F34: 33.82 | G34: 186.73 | H34: 0.16 | I34: 0.86 | J34: 33.32 | K34: 0.51 | L34: 133.70 | M34: 210.28 | N34: 63.74 | O34: 1.55 | P34: №173 сб шк 2017
A35: Яйцо отварное | C35: 50 | D35: 4.35 | E35: 1.00 | F35: 0.35 | G35: 62.50 | H35: 0.04 | I35: 0.00 | J35: 125.00 | K35: 0.30 | L35: 27.50 | M35: 96.00 | N35: 6.00 | O35: 1.25 | P35: №209 сб шк2017
A36: Какао с молоком(сахар)10 | C36: 200 | D36: 4.08 | E36: 3.81 | F36: 7.60 | G36: 78.60 | H36: 0.06 | I36: 1.59 | J36: 24.40 | K36: 0.00 | L36: 151.92 | M36: 124.56 | N36: 21.34 | O36: 0.45 | P36: №382 сб шк 2017
A37: Батон высший сорт | C37: 50 | D37: 3.75 | E37: 1.45 | F37: 25.70 | G37: 131.00 | H37: 0.06 | I37: 0.00 | J37: 0.00 | K37: 0.85 | L37: 9.50 | M37: 32.50 | N37: 6.50 | O37: 0.60 | P37: стр 134 табл. 6 Дели Плюс 2012г,
A38: Итого: | C38: 540 | D38: =SUM(D33:D37) -> 22.50 | E38: 24.28 | F38: 83.02 | G38: 654.93 | H38: 0.35 | I38: 2.56 | J38: 254.22 | K38: 2.34 | L38: 480.72 | M38: 575.84 | N38: 109.73 | O38: 4.34
B39: 2 - ой ЗАВТРАК
A40: Нектар плодовый (разливной) | C40: 200 | D40: 1.00 | E40: 0.00 | F40: 20.20 | G40: 85 | H40: 0.022 | I40: 4 | J40: 0 | K40: 0.2 | L40: 14 | M40: 14 | N40: 8 | O40: 2.8 | P40: №389 сб 2017 шк
A41: Итого: | C41: 200 | D41: =SUM(D40) -> 1.00 | E41: =SUM(E40) -> 0.00 | F41: 20.2 | G41: 84.8 | H41: 0.022 | I41: 4 | J41: 0 | K41: 0.2 | L41: 14 | M41: 14 | N41: 8 | O41: 2.8
C42: =C38+C41 -> 740.00 | D42: =D38+D41 -> 23.50 | E42: =E38+E41 -> 24.28 | F42: =F38+F41 -> 103.22 | G42: =G38+G41 -> 739.73 | Q42: =G42/2350 -> 31.48% | R42: 30% (28,5-31,5)
B43: ОБЕД
A44: Салат из белокачаной капусты с яблоками | C44: 60 | D44: 0.07 | E44: 3.06 | F44: 6.70 | G44: 54.06 | H44: 0.02 | I44: 10.12 | J44: 0.00 | K44: 9.24 | L44: 20.09 | M44: 17.61 | N44: 9.60 | O44: 0.59 | P44: №46 сб 2017 дошк
A45: Суп картофельный с крупой с мясом птицы | C45: 200/10 | D45: 3.92 | E45: 6.03 | F45: 22.72 | G45: 149.80 | H45: 0.08 | I45: 6.84 | J45: 5.82 | K45: 1.07 | L45: 26.72 | M45: 61.18 | N45: 20.25 | O45: 0.89 | P45: №101 сб шк 2017
A46: Гуляш из говядины | C46: 50/50 | D46: 12.50 | E46: 20.19 | F46: 4.89 | G46: 271.00 | H46: 0.03 | I46: 0.92 | K46: 2.61 | L46: 21.81 | M46: 154.15 | N46: 22.03 | O46: 3.06 | P46: №260 сб шк 2017
A47: Макаронные изделия отварные | C47: 150 | D47: 5.66 | E47: 0.67 | F47: 31.92 | G47: 156.30 | H47: 0.06 | K47: 0.77 | L47: 11.19 | M47: 37.17 | N47: 8.62 | O47: 0.85 | P47: №203 сб шк 2017
A48: Компот из сухофруктов (сахар 10) | C48: 200 | D48: 0.66 | E48: 0.09 | F48: 22.03 | G48: 92.80 | H48: 0.02 | I48: 0.73 | J48: 0.00 | K48: 0.51 | L48: 32.18 | M48: 23.44 | N48: 17.46 | O48: 0.67 | P48: №349 сб шк 2017
A49: Хлеб ржаной | C49: 50 | D49: 3.30 | E49: 0.60 | F49: 19.80 | G49: 99.00 | H49: 0.09 | I49: 0.00 | J49: 0.00 | K49: 0.70 | L49: 14.50 | M49: 75.00 | N49: 23.50 | O49: 1.95 | P49: стр 144 табл. 6 Дели Плюс 2012г,
A50: Хлеб пшеничный | C50: 50 | D50: 3.80 | E50: 0.40 | F50: 24.60 | G50: 117.50 | H50: 0.055 | I50: 0 | J50: 0 | K50: 0.55 | L50: 10 | M50: 32.5 | N50: 7 | O50: 0.55 | P50: стр 134 табл. 6 Дели Плюс 2012г,
A51: Итого: | C51: 820 | D51: =SUM(D44:D50) -> 29.91 | E51: =SUM(E44:E50) -> 31.04 | F51: 132.67 | G51: 940.46 | H51: 0.34 | I51: 18.60 | J51: 5.82 | K51: 15.45 | L51: 136.49 | M51: 401.05 | N51: 108.46 | O51: 8.55 | Q51: =G51/2350 -> 40.02% | R51: 40% (38-42)
A52: ВСЕГО: | C52: =C38+C41+C51 -> 1560.00 | D52: =D38+D41+D51 -> 53.42 | E52: 55.32 | F52: 235.89 | G52: 1680.19 | H52: 0.71 | I52: 25.16 | J52: 260.04 | K52: 17.99 | L52: 631.21 | M52: 990.89 | N52: 226.19 | O52: 15.69 | Q52: =G52/2350 -> 71.50% | R52: 70% (66,5-73,5%)
A54: День 3 - ий
A55: Наименование блюд и | C55: Масса | D55: Пищевые вещества | G55: Энергетическая | H55: В1,мг | I55: С,мг | J55: A,мкг | K55: Е,мг | L55: Ca | M55: P | N55: Mg | O55: Fe | P55: Сборник
A56: продуктов | C56: порции | G56: ценность | P56: рецептур
D57: белки | E57: жиры | F57: угл-ды | G57: Ккал
B58: ЗАВТРАК
A59: Бутерброд с маслом | C59: 30/10 | D59: 2.33 | E59: 8.12 | F59: 15.55 | G59: 144.60 | H59: 0.03 | I59: 0.00 | J59: 40.00 | K59: 0.62 | L59: 8.10 | M59: 22.50 | N59: 3.90 | O59: 0.38 | P59: №1 сб 2017 шк
A60: Запеканка творожная с молоком сгущенным | C60: 120/30 | D60: 5.30 | E60: 5.54 | F60: 10.50 | G60: 186.80 | H60: 0.09 | I60: 0.61 | J60: 109.20 | K60: 0.70 | L60: 271.52 | M60: 320.24 | N60: 38.50 | O60: 1.04 | P60: №223 СБ 2017 шк
A61: Блины с маслом сливочным | C61: 45/5 | D61: 2.43 | E61: 0.95 | F61: 11.60 | G61: 99.14 | H61: 0.05 | I61: 0.00 | J61: 29.14 | K61: 0.73 | L61: 11.01 | M61: 29.90 | N61: 8.59 | O61: 0.50 | P61: ТТК №656 от 28.04.2020
A62: Чай с сахаром | C62: 190/10 | D62: 0.38 | E62: 0.10 | F62: 10.06 | G62: 42.66 | H62: 0.0019 | I62: 0.19 | J62: 0 | K62: 0 | L62: 18.939 | M62: 15.656 | N62: 8.36 | O62: 1.588 | P62: №376 сб 2017 шк
A63: Фрукты свежие (Банан) | C63: 120 | D63: 1.80 | E63: 0.60 | F63: 9.20 | G63: 115.20 | H63: 0.05 | I63: 12.00 | J63: 0.00 | K63: 0.48 | L63: 9.60 | M63: 33.60 | N63: 50.40 | O63: 0.72 | P63: стр.184 табл.9 Дели +,2012г
A64: Батон высший сорт | C64: 50 | D64: 3.75 | E64: 1.45 | F64: 25.70 | G64: 131.00 | H64: 0.055 | I64: 0 | J64: 0 | K64: 0.85 | L64: 9.5 | M64: 32.5 | N64: 6.5 | O64: 0.6 | P64: стр 134 табл. 6 Дели Плюс 2012г,
A65: Итого: | C65: 610 | D65: =SUM(D59:D64) -> 15.99 | E65: =SUM(E59:E64) -> 16.76 | F65: 82.61 | G65: 549.80 | H65: 0.28 | I65: 12.80 | J65: 178.34 | K65: 3.37 | L65: 328.67 | M65: 454.40 | N65: 116.24 | O65: 4.83
B66: 2 - ой ЗАВТРАК
A67: Крекер | C67: 20 | D67: 1.84 | E67: 2.82 | F67: 12.64 | G67: 83.20 | H67: 0.03 | I67: 0.00 | K67: 1.30 | L67: 5.20 | M67: 21.40 | N67: 5.00 | O67: 0.28
A68: Молоко кипяченное | C68: 200 | D68: 5.80 | E68: 5.00 | F68: 9.60 | G68: 107.00 | H68: 0.08 | I68: 2.60 | J68: 40.00 | L68: 240.00 | M68: 180.00 | N68: 28.00 | O68: 0.20 | P68: №385 СБ шк 2017
A69: Итого: | C69: 220 | D69: =SUM(D67:D68) -> 7.64 | E69: =SUM(E67:E68) -> 7.82 | F69: 22.24 | G69: 190.20 | H69: 0.11 | I69: 2.60 | J69: 40.00 | K69: 1.30 | L69: 245.20 | M69: 201.40 | N69: 33.00 | O69: 0.48
C70: =C65+C69 -> 830 | D70: =D65+D69 -> 23.63 | E70: 24.58 | F70: 104.85 | G70: 740.00 | H70: 0.39 | I70: 15.40 | J70: 218.34 | K70: 4.67 | L70: 573.87 | M70: 655.80 | N70: 149.24 | O70: 5.31 | Q70: =G70/2350 -> 31.49% | R70: 30% (28,5-31,5)
B71: ОБЕД
A72: Салат из отварной свеклы с маслом растительным | C72: 60 | D72: 0.84 | E72: 3.61 | F72: 4.96 | G72: 55.68 | H72: 0.01 | I72: 3.99 | K72: 1.62 | L72: 21.28 | M72: 24.38 | N72: 12.42 | O72: 0.79 | P72: №52 сб 2017 шк
A73: Рассольник ленинградский с мясными фрикадельками, со сметаной | C73: 200/22/10 | D73: 7.02 | E73: 11.66 | F73: 19.02 | G73: 200.64 | H73: 0.09 | I73: 7.26 | J73: 22.80 | K73: 2.11 | L73: 43.91 | M73: 87.56 | N73: 24.70 | O73: 1.17 | P73: №96, 105 сб 2017 шк
A74: Рыба тушеная с овощами | C74: 60/30 | D74: 10.43 | E74: 11.62 | F74: 9.04 | G74: 180.33 | H74: 0.04 | I74: 3.05 | J74: 25.66 | K74: 2.06 | L74: 131.26 | M74: 189.75 | N74: 44.32 | O74: 0.75 | P74: №229 сб 2017 шк
A75: Пюре картофельное с капустой тушеной (доп.гарнир) | C75: 150/30 | D75: 3.68 | E75: 5.91 | F75: 32.81 | G75: 213.35 | H75: 0.15 | I75: 23.28 | J75: 0.00 | K75: 0.77 | L75: 54.60 | M75: 98.80 | N75: 34.01 | O75: 1.26 | P75: №312, 139 шк 2017 сб
A76: Напиток из шиповника (напиток из шиповника10) | C76: 200 | D76: 0.68 | E76: 0.28 | F76: 20.76 | G76: 88.20 | H76: 0.01 | I76: 100.00 | J76: 0.00 | K76: 0.76 | L76: 21.34 | M76: 3.44 | N76: 3.44 | O76: 0.63 | P76: №388 шк 2017 сб
A77: Хлеб ржаной | C77: 50 | D77: 3.30 | E77: 0.60 | F77: 19.80 | G77: 99.00 | H77: 0.09 | I77: 0.00 | J77: 0.00 | K77: 0.70 | L77: 14.50 | M77: 75.00 | N77: 23.50 | O77: 1.95 | P77: стр 144 табл. 6 Дели Плюс 2012г,
A78: Хлеб пшеничный | C78: 50 | D78: 3.80 | E78: 0.40 | F78: 24.60 | G78: 117.50 | H78: 0.06 | I78: 0.00 | J78: 0.00 | K78: 0.55 | L78: 10.00 | M78: 32.50 | N78: 7.00 | O78: 0.55 | P78: стр 134 табл. 6 Дели Плюс 2012г,
A79: Итого: | C79: 862 | D79: =SUM(D72:D78) -> 29.75 | E79: =SUM(E72:E78) -> 34.07 | F79: 130.99 | G79: 954.70 | H79: 0.44 | I79: 137.59 | J79: 48.46 | K79: 8.56 | L79: 296.89 | M79: 511.43 | N79: 149.39 | O79: 7.11 | Q79: =G79/2350 -> 40.63% | R79: 40% (38-42)
A80: ВСЕГО: | C80: =C65+C69+C79 -> 1692.00 | D80: =D65+D69+D79 -> 53.38 | E80: 58.65 | F80: 235.83 | G80: 1694.70 | H80: 0.83 | I80: 152.99 | J80: 266.80 | K80: 13.24 | L80: 870.76 | M80: 1167.24 | N80: 298.63 | O80: 12.42 | Q80: =G80/2350 -> 72.11% | R80: 70% (66,5-73,5%)
A82: День 4 - ый
A83: Наименование блюд и | C83: Масса | D83: Пищевые вещества | G83: Энергетическая | H83: В1,мг | I83: С,мг | J83: A,мкг | K83: Е,мг | L83: Ca | M83: P | N83: Mg | O83: Fe | P83: Сборник
A84: продуктов | C84: порции | G84: ценность | P84: рецептур
D85: белки | E85: жиры | F85: угл-ды | G85: Ккал
B86: ЗАВТРАК
A87: Бутерброд с сыром, с маслом | C87: 30/15/10 | D87: 6.28 | E87: 12.11 | F87: 15.55 | G87: 196.10 | H87: 0.04 | I87: 0.11 | J87: 71.50 | K87: 0.68 | L87: 158.10 | M87: 112.50 | N87: 12.15 | O87: 0.49 | P87: №3 сб 2017 шк
A88: Каша "Дружба" молочная | C88: 180/4 | D88: 4.43 | E88: 2.54 | F88: 28.07 | G88: 188.20 | H88: 0.09 | I88: 0.86 | J88: 29.32 | K88: 0.11 | L88: 118.84 | M88: 139.55 | N88: 33.50 | O88: 0.72 | P88: ТТК №7Д
A89: Кофейный напиток с молоком (сахар 10) | C89: 200 | D89: 3.17 | E89: 2.68 | F89: 5.97 | G89: 60.60 | H89: 0.04 | I89: 1.30 | J89: 20.00 | K89: 0.00 | L89: 125.48 | M89: 90.00 | N89: 14.00 | O89: 0.10 | P89: №379 шк 2017 сб
A90: Фрукты свежие (Яблоки) | C90: 120 | D90: 0.48 | E90: 0.48 | F90: 11.76 | G90: 56.40 | H90: 0.036 | I90: 12 | J90: 0 | K90: 0.24 | L90: 19.2 | M90: 13.2 | N90: 10.8 | O90: 2.64 | P90: №338 сб 2017 шк
A91: Батон высший сорт | C91: 50 | D91: 3.75 | E91: 1.45 | F91: 25.70 | G91: 131.00 | H91: 0.06 | I91: 0.00 | J91: 0.00 | K91: 0.85 | L91: 9.50 | M91: 32.50 | N91: 6.50 | O91: 0.60 | P91: стр 134 табл. 6 Дели Плюс 2012г,
A92: Итого: | C92: 609 | D92: =SUM(D87:D91) -> 18.10 | E92: =SUM(E87:E91) -> 19.26 | F92: 87.05 | G92: 632.30 | H92: 0.26 | I92: 14.27 | J92: 120.82 | K92: 1.88 | L92: 431.12 | M92: 387.75 | N92: 76.95 | O92: 4.55
B93: 2 - ой ЗАВТРАК
A94: Катык | C94: 200 | D94: 5.80 | E94: 5.00 | F94: 9.60 | G94: 107.00 | H94: 0.04 | I94: 0.06 | J94: 36.00 | K94: 0.00 | L94: 223.20 | M94: 165.60 | N94: 25.20 | O94: 0.18 | P94: №386 шк 2017 сб
A95: Итого: | C95: 200 | D95: =D94 -> 5.8 | E95: 5 | F95: 9.6 | G95: 107 | H95: 0.036 | I95: 0.063 | J95: 36 | K95: 0 | L95: 223.2 | M95: 165.6 | N95: 25.2 | O95: 0.18
C96: =C92+C95 -> 809.00 | D96: 23.90 | E96: 24.26 | F96: 96.65 | G96: 739.30 | H96: 0.30 | I96: 14.33 | J96: 156.82 | K96: 1.88 | L96: 654.32 | M96: 553.35 | N96: 102.15 | O96: 4.73 | Q96: =G96/2350 -> 31.46% | R96: 30% (28,5-31,5)
B97: ОБЕД
A98: Зеленый горошек к/с доп. гарнир | C98: 50 | D98: 1.55 | E98: 0.10 | F98: 3.25 | G98: 20.00 | H98: 0.06 | I98: 5.00 | J98: 0.00 | K98: 0.10 | L98: 10.00 | M98: 31.00 | N98: 10.50 | O98: 0.35 | P98: №10 дошк 2016 сб
A99: Суп - лапша домашняя на курином бульоне с мясом птицы | C99: 200/10 | D99: 9.39 | E99: 12.29 | F99: 25.33 | G99: 255.80 | H99: 0.04 | I99: 0.64 | J99: 15.82 | K99: 2.15 | L99: 28.20 | M99: 47.20 | N99: 10.57 | O99: 0.71 | P99: №113 шк 2017 сб
A100: Овощи тушеные с говяжьим фаршем | C100: 50/150 | D100: 12.01 | E100: 17.53 | F100: 35.88 | G100: 321.45 | H100: 0.02 | I100: 14.26 | J100: 31.25 | K100: 0.09 | L100: 54.33 | M100: 156.42 | N100: 33.10 | O100: 1.87 | P100: №143, 241 шк 2017 сб
A101: Нектар плодовый (разливной) | C101: 200 | D101: 1.00 | E101: 0.00 | F101: 20.20 | G101: 84.80 | H101: 0.02 | I101: 4.00 | J101: 0.00 | K101: 0.20 | L101: 14.00 | M101: 14.00 | N101: 8.00 | O101: 2.80 | P101: №389 сб 2017 шк
A102: Хлеб ржаной | C102: 50 | D102: 3.30 | E102: 0.60 | F102: 19.80 | G102: 99.00 | H102: 0.09 | I102: 0.00 | J102: 0.00 | K102: 0.70 | L102: 14.50 | M102: 75.00 | N102: 23.50 | O102: 1.95 | P102: стр 144 табл. 6 Дели Плюс 2012г,
A103: Хлеб пшеничный | C103: 50 | D103: 3.80 | E103: 0.40 | F103: 24.60 | G103: 117.50 | H103: 0.06 | I103: 0.00 | J103: 0.00 | K103: 0.55 | L103: 10.00 | M103: 32.50 | N103: 7.00 | O103: 0.55 | P103: стр 134 табл. 6 Дели Плюс 2012г,
A104: Итого: | C104: 760 | D104: =SUM(D98:D103) -> 31.05 | E104: =SUM(E98:E103) -> 30.92 | F104: 129.06 | G104: 898.55 | H104: 0.28 | I104: 23.90 | J104: 47.07 | K104: 3.79 | L104: 131.03 | M104: 356.12 | N104: 92.67 | O104: 8.23 | Q104: =G104/2350 -> 38.24% | R104: 40% (38-42)
A105: ВСЕГО: | C105: =C92+C95+C104 -> 1569.00 | D105: =D92+D95+D104 -> 54.95 | E105: 55.18 | F105: 225.71 | G105: 1637.85 | H105: 0.58 | I105: 38.23 | J105: 203.89 | K105: 5.67 | L105: 785.35 | M105: 909.47 | N105: 194.82 | O105: 12.96 | Q105: =G105/2350 -> 69.70% | R105: 70% (66,5-73,5%)
A107: День 5 - ый
A108: Наименование блюд и | C108: Масса | D108: Пищевые вещества | G108: Энергетическая | H108: В1,мг | I108: С,мг | J108: A,мкг | K108: Е,мг | L108: Ca | M108: P | N108: Mg | O108: Fe | P108: Сборник
A109: продуктов | C109: порции | G109: ценность | P109: рецептур
D110: белки | E110: жиры | F110: угл-ды | G110: Ккал
B111: ЗАВТРАК
A112: Бутерброд с маслом | C112: 30/10 | D112: 2.33 | E112: 8.12 | F112: 15.55 | G112: 144.60 | H112: 0.03 | I112: 0.00 | J112: 40.00 | K112: 0.62 | L112: 8.10 | M112: 22.50 | N112: 3.90 | O112: 0.38 | P112: №1 сб 2017 шк
A113: Каша манная молочная | C113: 180/4 | D113: 8.66 | E113: 8.02 | F113: 19.08 | G113: 192.90 | H113: 0.07 | I113: 1.05 | J113: 32.20 | K113: 0.41 | L113: 119.19 | M113: 104.87 | N113: 18.27 | O113: 0.41 | P113: №181 сб 2017 шк
A114: Яйцо отварное | C114: 50 | D114: 4.35 | E114: 1.00 | F114: 0.35 | G114: 62.50 | H114: 0.04 | I114: 0.00 | J114: 125.00 | K114: 0.30 | L114: 27.50 | M114: 96.00 | N114: 6.00 | O114: 1.25 | P114: №209 сб шк2017
A115: Чай с молоком, с сахаром | C115: 150/40/10 | D115: 1.46 | E115: 1.08 | F115: 11.96 | G115: 63.70 | H115: 0.02 | I115: 0.67 | J115: 8.00 | K115: 0.00 | L115: 63.02 | M115: 48.36 | N115: 12.20 | O115: 1.30 | P115: №378 СБ шк 2017
A116: Фрукты свежие (Яблоки) | C116: 120 | D116: 0.48 | E116: 0.48 | F116: 11.76 | G116: 56.40 | H116: 0.04 | I116: 12.00 | J116: 0.00 | K116: 0.24 | L116: 19.20 | M116: 13.20 | N116: 10.80 | O116: 2.64 | P116: №338 сб 2017 шк
A117: Батон высший сорт | C117: 50 | D117: 3.75 | E117: 1.45 | F117: 25.70 | G117: 131.00 | H117: 0.06 | I117: 0.00 | J117: 0.00 | K117: 0.85 | L117: 9.50 | M117: 32.50 | N117: 6.50 | O117: 0.60 | P117: стр 134 табл. 6 Дели Плюс 2012г,
A118: Итого: | C118: 644 | D118: =D117+D116+D115+D114+D113+D112 -> 21.03 | E118: 23.15 | F118: =F117+F116+F115+F114+F113+F112 -> 84.40 | G118: 651.10 | H118: 0.25 | I118: 13.72 | J118: 205.20 | K118: 2.42 | L118: 246.51 | M118: 317.43 | N118: 57.67 | O118: 6.58
B119: 2 - ой ЗАВТРАК
A120: Нектар плодовый (разливной) | C120: 200 | D120: 1.00 | E120: 0.00 | F120: 20.20 | G120: 84.80 | H120: 0.02 | I120: 4.00 | J120: 0.00 | K120: 0.20 | L120: 14.00 | M120: 14.00 | N120: 8.00 | O120: 2.80 | P120: №389 сб 2017 шк
A121: Итого: | C121: 200 | D121: =SUM(D120:D120) -> 1.00 | E121: 0.00 | F121: 20.20 | G121: 84.80 | H121: 0.02 | I121: 4.00 | J121: 0.00 | K121: 0.20 | L121: 14.00 | M121: 14.00 | N121: 8.00 | O121: 2.80
C122: =C118+C121 -> 844.00 | D122: =D118+D121 -> 22.03 | E122: 23.15 | F122: 104.60 | G122: 735.90 | H122: 0.27 | I122: 17.72 | J122: 205.20 | K122: 2.62 | L122: 260.51 | M122: 331.43 | N122: 65.67 | O122: 9.38 | Q122: =G122/2350 -> 31.31% | R122: 30% (28,5-31,5)
B123: ОБЕД
A124: Салат из белокачаной капусты с морковью | C124: 60 | D124: 0.79 | E124: 1.95 | F124: 3.88 | G124: 36.24 | H124: 0.01 | I124: 10.26 | J124: 0.00 | K124: 5.03 | L124: 14.98 | M124: 16.98 | N124: 9.05 | O124: 0.28 | P124: №45 сб 2017 шк
A125: Суп картофельный с мясными фрикадельками | C125: 200/22 | D125: 6.02 | E125: 11.20 | F125: 13.57 | G125: 148.84 | H125: 0.11 | I125: 10.12 | J125: 12.80 | K125: 1.22 | L125: 36.15 | M125: 98.26 | N125: 29.58 | O125: 1.37 | P125: №97 шк 2017 сб
A126: Биточки рыбные из минтая | C126: 90 | D126: 10.63 | E126: 7.38 | F126: 10.26 | G126: 171.00 | H126: 0.07 | I126: 0.59 | J126: 8.46 | K126: 4.52 | L126: 64.69 | M126: 166.91 | N126: 37.03 | O126: 1.31 | P126: № 234 шк 2017 сб
A127: Макаронные изделия с овощами | C127: 180 | D127: 6.21 | E127: 7.19 | F127: 34.23 | G127: 226.08 | H127: 0.09 | I127: 3.25 | J127: 0.00 | K127: 3.77 | L127: 23.30 | M127: 61.06 | N127: 20.81 | O127: 1.24 | P127: №205 сб 2017 шк
A128: Компот из свежих яблок (сахар 10) | C128: 200 | D128: 0.16 | E128: 0.16 | F128: 27.88 | G128: 114.60 | H128: 0.01 | I128: 0.90 | J128: 0.00 | K128: 0.08 | L128: 14.18 | M128: 4.40 | N128: 5.14 | O128: 0.95 | P128: №342 сб 2017 шк
A129: Хлеб ржаной | C129: 50 | D129: 3.30 | E129: 0.60 | F129: 19.80 | G129: 99.00 | H129: 0.09 | I129: 0.00 | J129: 0.00 | K129: 0.70 | L129: 14.50 | M129: 75.00 | N129: 23.50 | O129: 1.95 | P129: стр 144 табл. 6 Дели Плюс 2012г,
A130: Хлеб пшеничный | C130: 50 | D130: 3.80 | E130: 0.40 | F130: 24.60 | G130: 117.50 | H130: 0.06 | I130: 0.00 | J130: 0.00 | K130: 0.55 | L130: 10.00 | M130: 32.50 | N130: 7.00 | O130: 0.55 | P130: стр 134 табл. 6 Дели Плюс 2012г,
A131: Итого: | C131: 852 | D131: =SUM(D124:D130) -> 30.90 | E131: =SUM(E124:E130) -> 28.88 | F131: 134.22 | G131: 913.26 | H131: 0.44 | I131: 25.13 | J131: 21.26 | K131: 15.88 | L131: 177.81 | M131: 455.11 | N131: 132.11 | O131: 7.66 | Q131: =G131/2350 -> 38.86% | R131: 40% (38-42)
A132: ВСЕГО: | C132: =C118+C121+C131 -> 1696.00 | D132: =D118+D121+D131 -> 52.93 | E132: 52.03 | F132: 238.81 | G132: 1649.16 | H132: 0.71 | I132: 42.85 | J132: 226.46 | K132: 18.50 | L132: 438.31 | M132: 786.55 | N132: 197.78 | O132: 17.04 | Q132: =G132/2350 -> 70.18% | R132: 70% (66,5-73,5%)
A135: День 6 - ый
A136: Наименование блюд и | C136: Масса | D136: Пищевые вещества | G136: Энергетическая | H136: В1,мг | I136: С,мг | J136: A,мкг | K136: Е,мг | L136: Ca | M136: P | N136: Mg | O136: Fe | P136: Сборник
A137: продуктов | C137: порции | G137: ценность | P137: рецептур
D138: белки | E138: жиры | F138: угл-ды | G138: Ккал
B139: ЗАВТРАК
A140: Бутерброд с маслом | C140: 30/10 | D140: 2.33 | E140: 8.12 | F140: 15.55 | G140: 144.60 | H140: 0.03 | I140: 0.00 | J140: 40.00 | K140: 0.62 | L140: 8.10 | M140: 22.50 | N140: 3.90 | O140: 0.38 | P140: №1 сб 2017 шк
A141: Каша кукурузная молочная | C141: 150 | D141: 4.11 | E141: 3.99 | F141: 26.59 | G141: 161.00 | H141: 0.07 | I141: 0.72 | J141: 11.10 | K141: 0.22 | L141: 102.05 | M141: 112.96 | N141: 23.71 | O141: 1.25 | P141: №174 сб 2017 шк
A142: Блины с маслом сливочным | C142: 45/5 | D142: 2.43 | E142: 0.95 | F142: 11.60 | G142: 99.14 | H142: 0.05 | I142: 0.00 | J142: 29.14 | K142: 0.73 | L142: 11.01 | M142: 29.90 | N142: 8.59 | O142: 0.50 | P142: ТТК №656 от 28.04.2020
A143: Какао с молоком(сахар)10 | C143: 200 | D143: 4.08 | E143: 3.81 | F143: 7.60 | G143: 78.60 | H143: 0.06 | I143: 1.59 | J143: 24.40 | K143: 0.00 | L143: 151.92 | M143: 124.56 | N143: 21.34 | O143: 0.45 | P143: №382 сб шк 2017
A144: Фрукты свежие (Банан) | C144: 120 | D144: 1.80 | E144: 0.60 | F144: 9.20 | G144: 115.20 | H144: 0.05 | I144: 12.00 | J144: 0.00 | K144: 0.48 | L144: 9.60 | M144: 33.60 | N144: 50.40 | O144: 0.72 | P144: стр.184 табл.9 Дели +,2012г
A145: Батон высший сорт | C145: 50 | D145: 3.75 | E145: 1.45 | F145: 25.70 | G145: 131.00 | H145: 0.06 | I145: 0.00 | J145: 0.00 | K145: 0.85 | L145: 9.50 | M145: 32.50 | N145: 6.50 | O145: 0.60 | P145: стр 134 табл. 6 Дели Плюс 2012г,
A146: Итого: | C146: 610 | D146: 18.40 | E146: =SUM(E140:E145) -> 18.92 | F146: 96.24 | G146: =G145+G144+G143+G141+G140 -> 630.40 | H146: 0.31 | I146: 14.31 | J146: 104.64 | K146: 2.89 | L146: 292.18 | M146: 356.02 | N146: 114.44 | O146: 3.89
B147: 2 - ой ЗАВТРАК
A148: Ряженка | C148: 200 | D148: 5.80 | E148: 5.00 | F148: 8.40 | G148: 102.00 | H148: 0.04 | I148: 0.60 | J148: 28.00 | L148: 248.00 | M148: 184.00 | N148: 28.00 | O148: 0.20 | P148: №386 шк 2017 сб
A149: Итого: | C149: =C148 -> 200 | D149: =D148 -> 5.8 | E149: 5 | F149: 8.4 | G149: 102 | H149: 0.04 | I149: 0.6 | J149: 28 | K149: 0 | L149: 248 | M149: 184 | N149: 28 | O149: 0.2
C150: =C146+C149 -> 810.00 | D150: =D146+D149 -> 24.20 | E150: =E146+E149 -> 23.92 | F150: 104.64 | G150: 732.40 | H150: 0.35 | I150: 14.91 | J150: 132.64 | K150: 2.89 | L150: 540.18 | M150: 540.02 | N150: 142.44 | O150: 4.09 | P150: 0.00 | Q150: =G150/2350 -> 31.17% | R150: 30% (28,5-31,5)
B151: ОБЕД
A152: Салат из моркови | C152: 60 | D152: 0.74 | E152: 0.06 | F152: 10.89 | G152: 49.02 | H152: 0.03 | I152: 2.02 | J152: 0.00 | K152: 8.04 | L152: 15.46 | M152: 31.66 | N152: 21.63 | O152: 0.40 | P152: №62 сб 2017шк
A153: Суп из овощей на курином бульоне с мясными фрикадельками , со сметаной | C153: 200/22/10 | D153: 6.68 | E153: 9.57 | F153: 7.75 | G153: 150.04 | H153: 0.07 | I153: 8.86 | J153: 22.80 | K153: 2.09 | L153: 48.47 | M153: 81.60 | N153: 21.96 | O153: 1.05 | P153: №99 шк 2017 сб
A154: Плов из куриных грудок | C154: 250 | D154: 16.52 | E154: 19.80 | F154: 52.80 | G154: 443.33 | H154: 0.18 | I154: 8.17 | J154: 35.00 | K154: 0.68 | L154: 45.12 | M154: 236.67 | N154: 67.42 | O154: 2.33 | P154: №291 шк 2017 сб
A155: Нектар плодовый (разливной) | C155: 200 | D155: 1.00 | E155: 0.00 | F155: 20.20 | G155: 84.80 | H155: 0.02 | I155: 4.00 | J155: 0.00 | K155: 0.20 | L155: 14.00 | M155: 14.00 | N155: 8.00 | O155: 2.80 | P155: №389 сб 2017 шк
A156: Хлеб ржаной | C156: 50 | D156: 3.30 | E156: 0.60 | F156: 19.80 | G156: 99.00 | H156: 0.09 | I156: 0.00 | J156: 0.00 | K156: 0.70 | L156: 14.50 | M156: 75.00 | N156: 23.50 | O156: 1.95 | P156: стр 144 табл. 6 Дели Плюс 2012г,
A157: Хлеб пшеничный | C157: 50 | D157: 3.80 | E157: 0.40 | F157: 24.60 | G157: 117.50 | H157: 0.06 | I157: 0.00 | J157: 0.00 | K157: 0.55 | L157: 10.00 | M157: 32.50 | N157: 7.00 | O157: 0.55 | P157: стр 134 табл. 6 Дели Плюс 2012г,
A158: Итого: | C158: 842 | D158: =D157+D156+D154+D153+D152 -> 31.04 | E158: =SUM(E152:E157) -> 30.43 | F158: 135.04 | G158: 943.69 | H158: 0.45 | I158: 23.04 | J158: 57.80 | K158: 12.27 | L158: 147.54 | M158: 471.43 | N158: 149.51 | O158: 9.09 | Q158: =G158/2350 -> 40.16% | R158: 40% (38-42)
A159: ВСЕГО: | C159: =C146+C149+C158 -> 1652.00 | D159: =D146+D149+D158 -> 55.24 | E159: 54.35 | F159: 239.68 | G159: 1676.09 | H159: 0.80 | I159: 37.95 | J159: 190.44 | K159: 15.16 | L159: 687.73 | M159: 1011.45 | N159: 291.94 | O159: 13.18 | Q159: =G159/2350 -> 71.32% | R159: 70% (66,5-73,5%)
A161: День 7 - ой
A162: Наименование блюд и | C162: Масса | D162: Пищевые вещества | G162: Энергетическая | H162: В1,мг | I162: С,мг | J162: A,мкг | K162: Е,мг | L162: Ca | M162: P | N162: Mg | O162: Fe | P162: Сборник
A163: продуктов | C163: порции | G163: ценность | P163: рецептур
D164: белки | E164: жиры | F164: угл-ды | G164: Ккал
B165: ЗАВТРАК
A166: Бутерброд с сыром,с маслом | C166: 30/15/10 | D166: 6.28 | E166: 12.11 | F166: 15.55 | G166: 196.10 | H166: 0.04 | I166: 0.11 | J166: 71.50 | K166: 0.68 | L166: 158.10 | M166: 112.50 | N166: 12.15 | O166: 0.49 | P166: №3 сб 2017 шк
A167: Запеканка творожная с молоком сгущенным | C167: 120/30 | D167: 5.30 | E167: 5.54 | F167: 10.50 | G167: 186.80 | H167: 0.09 | I167: 0.61 | J167: 109.20 | K167: 0.70 | L167: 271.52 | M167: 320.24 | N167: 38.50 | O167: 1.04 | P167: №223 СБ 2017 шк
A168: Чай с сахаром с лимоном | C168: 185/10/5 | D168: 0.13 | E168: 0.02 | F168: 10.20 | G168: 42.00 | H168: 0.12 | I168: 2.00 | J168: 51.70 | K168: 4.02 | L168: 34.97 | M168: 301.50 | N168: 52.71 | O168: 3.56 | P168: №377 СБ 2017,шк
A169: Фрукты свежие (Яблоки) | C169: 120 | D169: 0.48 | E169: 0.48 | F169: 11.76 | G169: 56.40 | H169: 0.036 | I169: 12 | J169: 0 | K169: 0.24 | L169: 19.2 | M169: 13.2 | N169: 10.8 | O169: 2.64 | P169: №338 сб 2017 шк
A170: Батон высший сорт | C170: 50 | D170: 3.75 | E170: 1.45 | F170: 25.70 | G170: 131.00 | H170: 0.055 | I170: 0 | J170: 0 | K170: 0.85 | L170: 9.5 | M170: 32.5 | N170: 6.5 | O170: 0.6 | P170: стр 134 табл. 6 Дели Плюс 2012г,
A171: Итого: | C171: 575 | D171: =SUM(D166:D170) -> 15.94 | E171: =SUM(E166:E170) -> 19.60 | F171: =F170+F169+F168+F167+F166+F166 -> 89.26 | G171: 612.30 | H171: 0.34 | I171: 14.72 | J171: 232.40 | K171: 6.48 | L171: 493.29 | M171: 779.94 | N171: 120.66 | O171: 8.32
B172: 2 - ой ЗАВТРАК
A173: Молоко кипяченное | C173: 200 | D173: 5.80 | E173: 5.00 | F173: 9.60 | G173: 107.00 | H173: 0.08 | I173: 2.60 | J173: 40.00 | L173: 240.00 | M173: 180.00 | N173: 28.00 | O173: 0.20 | P173: №385 СБ шк 2017
A174: Итого: | C174: 200 | D174: =SUM(D173:D173) -> 5.80 | E174: 5.00 | F174: 9.60 | G174: 107.00 | H174: 0.08 | I174: 2.60 | J174: 40.00 | K174: 0.00 | L174: 240.00 | M174: 180.00 | N174: 28.00 | O174: 0.20
C175: =C171+C174 -> 775 | D175: 21.94 | E175: =E171+E174 -> 24.60 | F175: =F171+F174 -> 98.86 | G175: 719.30 | H175: 0.4198 | I175: 17.317 | J175: 272.4 | K175: 6.481 | L175: 733.289 | M175: 959.939 | N175: 148.656 | O175: 8.5245 | Q175: =G175/2350 -> 30.61% | R175: 30% (28,5-31,5)
B176: ОБЕД
A177: Огурцы соленые (доп гарнир) | C177: 30 | D177: 0.24 | E177: 0.03 | F177: 0.51 | G177: 3.00 | H177: 0.01 | I177: 1.05 | J177: 0.00 | K177: 0.03 | L177: 6.90 | M177: 7.20 | N177: 4.20 | O177: 0.18 | P177: №70 СБ шк 2017
A178: Суп гороховый с фрикадельками из птицы и гренками | C178: 200/11/10 | D178: 3.18 | E178: 6.82 | F178: 16.18 | G178: 143.84 | H178: 0.27 | I178: 0.91 | J178: 4.35 | K178: 18.03 | L178: 51.07 | M178: 101.42 | N178: 36.39 | O178: 2.58 | P178: №119 шк 2017 сб
A179: Котлета из говядины с маслом сливочным | C179: 90/3 | D179: 14.87 | E179: 13.00 | F179: 14.34 | G179: 218.30 | H179: 0.08 | I179: 1.08 | J179: 18.32 | K179: 2.61 | L179: 14.30 | M179: 151.03 | N179: 25.15 | O179: 2.34 | P179: №271 шк 2017 сб
A180: Картофель запеченный дольками | C180: 180 | D180: 4.90 | E180: 10.58 | F180: 37.94 | G180: 273.60 | H180: 0.25 | I180: 26.10 | J180: 0.00 | K180: 8.10 | L180: 25.65 | M180: 127.42 | N180: 48.35 | O180: 1.78 | P180: №314 сб 2017 шк
A181: Компот из сухофруктов (сахар 10) | C181: 200 | D181: 0.66 | E181: 0.09 | F181: 22.03 | G181: 92.80 | H181: 0.02 | I181: 0.73 | J181: 0.00 | K181: 0.51 | L181: 32.18 | M181: 23.44 | N181: 17.46 | O181: 0.67 | P181: №349 сб шк 2017
A182: Хлеб ржаной | C182: 50 | D182: 3.30 | E182: 0.60 | F182: 19.80 | G182: 99.00 | H182: 0.09 | I182: 0.00 | J182: 0.00 | K182: 0.70 | L182: 14.50 | M182: 75.00 | N182: 23.50 | O182: 1.95 | P182: стр 144 табл. 6 Дели Плюс 2012г,
A183: Хлеб пшеничный | C183: 50 | D183: 3.80 | E183: 0.40 | F183: 24.60 | G183: 117.50 | H183: 0.06 | I183: 0.00 | J183: 0.00 | K183: 0.55 | L183: 10.00 | M183: 32.50 | N183: 7.00 | O183: 0.55 | P183: стр 134 табл. 6 Дели Плюс 2012г,
A184: Итого: | C184: 824 | D184: =SUM(D177:D183) -> 30.95 | E184: 31.52 | F184: 135.41 | G184: 948.04 | H184: 0.76 | I184: 29.87 | J184: 22.67 | K184: 30.53 | L184: 154.60 | M184: 518.01 | N184: 162.05 | O184: 10.05 | Q184: =G184/2350 -> 40.34% | R184: 40% (38-42)
A185: ВСЕГО: | C185: =C171+C174+C184 -> 1599 | D185: =D171+D174+D184 -> 52.68405736 | E185: 56.124 | F185: 234.2708908 | G185: 1667.34 | H185: 1.175607102 | I185: 47.18449912 | J185: 295.0701312 | K185: 37.01010358 | L185: 887.8898329 | M185: 1477.950432 | N185: 310.7031062 | O185: 18.5705421 | Q185: =G185/2350 -> 70.95% | R185: 70% (66,5-73,5%)
A186: ВСЕГО ЗА 7 ДЕНЬ | C186: =C185+C159+C132+C105+C80+C52+C26 -> 11354.00 | D186: 374.60 | E186: 387.84 | F186: 1638.28 | G186: 11637.49 | H186: 5.57 | I186: 388.70 | J186: 1612.10 | K186: 126.17 | L186: 4922.56 | M186: 7232.66 | N186: 1754.17 | O186: 107.35 | Q186: =G186/2350 -> 495.21% | R186: 70% (66,5-73,5%)
A187: В среднем на 1 учащегося в день | C187: =C186/7 -> 1622 | D187: =D186/7 -> 53.51 | E187: 55.41 | F187: 234.04 | G187: 1662.50 | H187: 0.80 | I187: 55.53 | J187: 230.30 | K187: 18.02 | L187: 703.22 | M187: 1033.24 | N187: 250.60 | O187: 15.34

Sheet старшие
A2: День 1 - ый
A3: Наименование блюд и | C3: Масса | D3: Пищевые вещества | G3: Энергетическая | H3: В1,мг | I3: С,мг | J3: A,мкг | K3: Е,мг | L3: Ca | M3: P | N3: Mg | O3: Fe | P3: Сборник
A4: продуктов | C4: порции | G4: ценность | P4: рецептур
D5: белки | E5: жиры | F5: угл-ды | G5: Ккал
B6: ЗАВТРАК
A7: Бутерброд с маслом | C7: 30/10 | D7: 2.33 | E7: 8.12 | F7: 15.55 | G7: 144.60 | H7: 0.03 | I7: 0.00 | J7: 40.00 | K7: 0.62 | L7: 8.10 | M7: 22.50 | N7: 3.90 | O7: 0.38 | P7: №1 сб 2017 шк
A8: Каша пшённая молочная с маслом сливочным | C8: 200/5 | D8: 7.47 | E8: 8.10 | F8: 18.99 | G8: 210.00 | H8: 0.19 | I8: 1.17 | J8: 38.00 | K8: 0.15 | L8: 136.90 | M8: 182.87 | N8: 47.60 | O8: 1.22 | P8: №173 СБ шк 2017
A9: Чай с молоком, с сахаром | C9: 150/40/10 | D9: 1.46 | E9: 1.08 | F9: 11.96 | G9: 63.70 | H9: 0.02 | I9: 0.67 | J9: 8.00 | K9: 0.00 | L9: 63.02 | M9: 48.36 | N9: 12.20 | O9: 1.30 | P9: №378 СБ шк 2017
A10: Фрукты свежие (Яблоки) | C10: 120 | D10: 0.48 | E10: 0.48 | F10: 11.76 | G10: 56.40 | H10: 0.036 | I10: 12 | J10: 0 | K10: 0.24 | L10: 19.2 | M10: 13.2 | N10: 10.8 | O10: 2.64 | P10: №338 сб 2017 шк
A11: Батон | C11: 50 | D11: 3.75 | E11: 1.45 | F11: 25.70 | G11: 131.00 | H11: 0.055 | I11: 0 | J11: 0 | K11: 0.85 | L11: 9.5 | M11: 32.5 | N11: 6.5 | O11: 0.6 | P11: стр 134 табл. 6 Дели Плюс 2012г,
A12: Итого: | C12: 615 | D12: 17.49 | E12: =SUM(E7:E11) -> 19.23 | F12: 83.96 | G12: 605.70 | H12: 0.33 | I12: 13.84 | J12: 86.00 | K12: 1.86 | L12: 236.72 | M12: 299.43 | N12: 81.00 | O12: 6.14
B13: 2 - ой ЗАВТРАК
A14: Печенье | C14: 35 | D14: 2.59 | E14: 3.29 | F14: 25.59 | G14: 142.45 | H14: 0.05 | K14: 1.30 | L14: 9.10 | M14: 29.40 | N14: 10.50 | O14: 0.49
A15: Молоко кипяченное | C15: 200 | D15: 5.80 | E15: 5.00 | F15: 9.60 | G15: 107.00 | H15: 0.08 | I15: 2.60 | J15: 40.00 | L15: 240.00 | M15: 180.00 | N15: 28.00 | O15: 0.20 | P15: №385 СБ шк 2017
A16: Итого: | C16: 235 | D16: =SUM(D14:D15) -> 8.39 | E16: 8.29 | F16: 35.19 | G16: 249.45 | H16: 0.13 | I16: 2.60 | J16: 40.00 | K16: 1.30 | L16: 249.10 | M16: 209.40 | N16: 38.50 | O16: 0.69
C17: =C12+C16 -> 850 | D17: =D12+D16 -> 25.88 | E17: =E12+E16 -> 27.52 | F17: =F12+F16 -> 119.15 | G17: =G12+G16 -> 855.15 | H17: =H12+H16 -> 0.46 | I17: 16.44 | J17: 126.00 | K17: 3.16 | L17: 485.82 | M17: 508.83 | N17: 119.50 | O17: 6.83 | Q17: =G17/2720 -> 31.44% | R17: 30% (28,5-31,5)
B18: ОБЕД
A19: Салат из моркови | C19: 100 | D19: 1.23 | E19: 0.09 | F19: 11.48 | G19: 81.70 | H19: 0.06 | I19: 3.36 | J19: 0.00 | K19: 13.40 | L19: 25.76 | M19: 52.77 | N19: 36.05 | O19: 0.66 | P19: №62 сб 2017шк
A20: Щи из свежей капусты с картофелем, мясными фрикадельками, со сметаной | C20: 250/22/10 | D20: 7.17 | E20: 10.53 | F20: 8.34 | G20: 163.59 | H20: 0.07 | I20: 16.33 | J20: 22.80 | K20: 2.58 | L20: 69.84 | M20: 91.18 | N20: 27.49 | O20: 1.26 | P20: №88,105 сб 2017шк
A21: Жаркое по - домашнему с куриной грудкой | C21: 50/200 | D21: 17.91 | E21: 23.10 | F21: 32.71 | G21: 495.00 | H21: 0.14 | I21: 11.24 | J21: 36.38 | K21: 4.85 | L21: 69.63 | M21: 239.25 | N21: 54.15 | O21: 5.22 | P21: ТТК
A22: Нектар плодовый (разливной) | C22: 200 | D22: 1.00 | E22: 0.00 | F22: 20.20 | G22: 84.80 | H22: 0.022 | I22: 4 | J22: 0 | K22: 0.2 | L22: 14 | M22: 14 | N22: 8 | O22: 2.8 | P22: №389 сб 2017 шк
A23: Хлеб ржаной | C23: 60 | D23: 3.96 | E23: 0.72 | F23: 23.76 | G23: 119 | H23: 0.102 | K23: 0.84 | L23: 17.4 | M23: 90 | N23: 28.2 | O23: 2.34 | P23: стр 144 табл. 6 Дели Плюс 2012г,
A24: Хлеб пшеничный | C24: 60 | D24: 4.56 | E24: 0.48 | F24: 29.52 | G24: 141 | H24: 0.066 | K24: 0.66 | L24: 12 | M24: 39 | N24: 8.4 | O24: 0.66 | P24: стр 134 табл. 6 Дели Плюс 2012г,
A25: Итого: | C25: 952 | D25: =SUM(D19:D24) -> 35.84 | E25: =E24+E23+E22+E21+E20+E19 -> 34.93 | F25: 146.54 | G25: =G24+G23+G22+G21+G20+G19 -> 1084.89 | H25: =SUM(H19:H24) -> 0.46 | I25: 34.93 | J25: 59.18 | K25: 22.53 | L25: 208.63 | M25: 526.20 | N25: 162.28 | O25: 12.94 | Q25: =G25/2720 -> 39.89% | R25: 40% (38-42)
A26: ВСЕГО: | C26: =C12+C16+C25 -> 1802.00 | D26: =D12+D16+D25 -> 61.72 | E26: 62.44 | F26: 265.69 | G26: 1940.04 | H26: 0.92 | I26: 51.37 | J26: 185.18 | K26: 25.69 | L26: 694.44 | M26: 1035.03 | N26: 281.78 | O26: 19.77 | Q26: =G26/2720 -> 71.33% | R26: 70% (66,5-73,5%)
A28: День 2- ой
A29: Наименование блюд и | C29: Масса | D29: Пищевые вещества | G29: Энергетическая | H29: В1,мг | I29: С,мг | J29: A,мкг | K29: Е,мг | L29: Ca | M29: P | N29: Mg | O29: Fe | P29: Сборник
A30: продуктов | C30: порции | G30: ценность | P30: рецептур
D31: белки | E31: жиры | F31: угл-ды | G31: Ккал
B32: ЗАВТРАК
A33: Бутерброд с сыром, с маслом | C33: 30/15/10 | D33: 6.28 | E33: 12.11 | F33: 15.55 | G33: 196.10 | H33: 0.04 | I33: 0.11 | J33: 71.50 | K33: 0.68 | L33: 158.10 | M33: 112.50 | N33: 12.15 | O33: 0.49 | P33: №3 сб 2017 шк
A34: Каша геркулесовая молочная с маслом сливочным | C34: 200/5 | D34: 5.28 | E34: 6.20 | F34: 37.58 | G34: 203.67 | H34: 0.18 | I34: 0.96 | J34: 37.02 | K34: 0.57 | L34: 148.55 | M34: 233.65 | N34: 70.82 | O34: 1.72 | P34: №173 сб шк 2017
A35: Яйцо отварное | C35: 50 | D35: 4.35 | E35: 1.00 | F35: 0.35 | G35: 62.50 | H35: 0.04 | I35: 0.00 | J35: 125.00 | K35: 0.30 | L35: 27.50 | M35: 96.00 | N35: 6.00 | O35: 1.25 | P35: №209 сб шк2017
A36: Какао с молоком(сахар)10 | C36: 200 | D36: 4.08 | E36: 3.81 | F36: 7.60 | G36: 78.60 | H36: 0.06 | I36: 1.59 | J36: 24.40 | K36: 0.00 | L36: 151.92 | M36: 124.56 | N36: 21.34 | O36: 0.45 | P36: №382 сб шк 2017
A37: Батон высший сорт | C37: 50 | D37: 3.75 | E37: 1.45 | F37: 25.70 | G37: 131.00 | H37: 0.06 | I37: 0.00 | J37: 0.00 | K37: 0.85 | L37: 9.50 | M37: 32.50 | N37: 6.50 | O37: 0.60 | P37: стр 134 табл. 6 Дели Плюс 2012г,
A38: Итого: | C38: 560 | D38: 24.73 | E38: =E37+E36+E35+E34+E33+E36 -> 28.38 | F38: 99.91 | G38: 767.37 | H38: =SUM(H33:H37) -> 0.36 | I38: 2.65 | J38: 257.92 | K38: 2.40 | L38: 495.57 | M38: 599.21 | N38: 116.81 | O38: 4.51
B39: 2 - ой ЗАВТРАК
A40: Нектар плодовый (разливной) | C40: 200 | D40: 1.00 | E40: 0.00 | F40: 20.20 | G40: 85 | H40: 0.022 | I40: 4 | J40: 0 | K40: 0.2 | L40: 14 | M40: 14 | N40: 8 | O40: 2.8 | P40: №389 сб 2017 шк
A41: Итого: | C41: 200 | D41: =D40 -> 1.00 | E41: =E40 -> 0.00 | F41: =F40 -> 20.20 | G41: =G40 -> 84.80 | H41: =H40 -> 0.02 | I41: =I40 -> 4.00 | J41: 0.00 | K41: 0.20 | L41: 14.00 | M41: 14.00 | N41: 8.00 | O41: 2.80
C42: =C38+C41 -> 760 | D42: =D38+D41 -> 25.73 | E42: =E38+E41 -> 28.38 | F42: =F38+F41 -> 120.11 | G42: =G38+G41 -> 852.17 | H42: =H38+H41 -> 0.39 | I42: 6.65 | J42: 257.92 | K42: 2.60 | L42: 509.57 | M42: 613.21 | N42: 124.81 | O42: 7.31 | Q42: =G42/2720 -> 31.33% | R42: 30% (28,5-31,5)
B43: ОБЕД
A44: Салат из белокачаной капусты с яблоками | C44: 100 | D44: 0.12 | E44: 5.10 | F44: 11.17 | G44: 90.10 | H44: 0.03 | I44: 16.87 | J44: 0.00 | K44: 15.40 | L44: 33.49 | M44: 29.35 | N44: 16.00 | O44: 0.98 | P44: №46 сб 2017 дошк
A45: Суп картофельный с крупой с мясом птицы | C45: 250/10 | D45: 4.31 | E45: 9.54 | F45: 28.40 | G45: 208.65 | H45: 0.09 | I45: 8.49 | J45: 5.82 | K45: 1.32 | L45: 32.06 | M45: 72.38 | N45: 24.80 | O45: 1.06 | P45: №101 сб шк 2017
A46: Гуляш из говядины | C46: 50/50 | D46: 12.50 | E46: 20.19 | F46: 4.89 | G46: 271.00 | H46: 0.03 | I46: 0.92 | K46: 2.61 | L46: 21.81 | M46: 154.15 | N46: 22.03 | O46: 3.06 | P46: №260 сб шк 2017
A47: Макаронные изделия отварные | C47: 180 | D47: 6.79 | E47: 0.80 | F47: 38.30 | G47: 187.56 | H47: 0.07 | K47: 0.93 | L47: 13.43 | M47: 44.60 | N47: 10.34 | O47: 1.02 | P47: №203 сб шк 2017
A48: Компот из сухофруктов (сахар 10) | C48: 200 | D48: 0.66 | E48: 0.09 | F48: 22.03 | G48: 92.80 | H48: 0.02 | I48: 0.73 | J48: 0.00 | K48: 0.51 | L48: 32.18 | M48: 23.44 | N48: 17.46 | O48: 0.67 | P48: №349 сб шк 2017
A49: Хлеб ржаной | C49: 60 | D49: 3.96 | E49: 0.72 | F49: 23.76 | G49: 118.80 | H49: 0.10 | K49: 0.84 | L49: 17.40 | M49: 90.00 | N49: 28.20 | O49: 2.34 | P49: стр 144 табл. 6 Дели Плюс 2012г,
A50: Хлеб пшеничный | C50: 60 | D50: 4.56 | E50: 0.48 | F50: 29.52 | G50: 141.00 | H50: 0.066 | K50: 0.66 | L50: 12 | M50: 39 | N50: 8.4 | O50: 0.66 | P50: стр 134 табл. 6 Дели Плюс 2012г,
A51: Итого: | C51: 960 | D51: =SUM(D44:D50) -> 32.91 | E51: 35.92 | F51: =F50+F49+F48+F47+F45+F44 -> 153.18 | G51: =G50+G49+G48+G47+G46+G45 -> 1019.81 | H51: =SUM(H44:H50) -> 0.41 | I51: 27.00 | J51: 5.82 | K51: 22.26 | L51: 162.37 | M51: 452.91 | N51: 127.24 | O51: 9.79 | Q51: =G51/2720 -> 37.49% | R51: 40% (38-42)
A52: ВСЕГО: | C52: =C38+C41+C51 -> 1720.00 | D52: =D38+D41+D51 -> 58.64 | E52: 64.30 | F52: 273.29 | G52: 1871.98 | H52: 0.80 | I52: 33.66 | J52: 263.74 | K52: 24.86 | L52: 671.94 | M52: 1066.12 | N52: 252.05 | O52: 17.10 | Q52: =G52/2720 -> 68.82% | R52: 70% (66,5-73,5%)
A54: День 3 - ий
A55: Наименование блюд и | C55: Масса | D55: Пищевые вещества | G55: Энергетическая | H55: В1,мг | I55: С,мг | J55: A,мкг | K55: Е,мг | L55: Ca | M55: P | N55: Mg | O55: Fe | P55: Сборник
A56: продуктов | C56: порции | G56: ценность | P56: рецептур
D57: белки | E57: жиры | F57: угл-ды | G57: Ккал
B58: ЗАВТРАК
A59: Бутерброд с маслом | C59: 30/10 | D59: 2.33 | E59: 8.12 | F59: 15.55 | G59: 144.60 | H59: 0.03 | I59: 0.00 | J59: 40.00 | K59: 0.62 | L59: 8.10 | M59: 22.50 | N59: 3.90 | O59: 0.38 | P59: №1 сб 2017 шк
A60: Запеканка творожная с молоком сгущенным | C60: 170/30 | D60: 8.10 | E60: 7.85 | F60: 14.88 | G60: 205.88 | H60: 0.12 | I60: 0.74 | J60: 154.70 | K60: 0.99 | L60: 345.03 | M60: 425.05 | N60: 50.29 | O60: 1.45 | P60: №223 СБ 2017 шк
A61: Блины с маслом сливочным | C61: 45/5 | D61: 2.43 | E61: 0.95 | F61: 11.60 | G61: 99.14 | H61: 0.05 | I61: 0.00 | J61: 29.14 | K61: 0.73 | L61: 11.01 | M61: 29.90 | N61: 8.59 | O61: 0.50 | P61: ТТК №656 от 28.04.2020
A62: Чай с сахаром | C62: 190/10 | D62: 0.38 | E62: 0.10 | F62: 10.06 | G62: 42.66 | H62: 0.0019 | I62: 0.19 | J62: 0 | K62: 0 | L62: 18.939 | M62: 15.656 | N62: 8.36 | O62: 1.588 | P62: №376 сб 2017 шк
A63: Фрукты свежие (Банан) | C63: 120 | D63: 1.80 | E63: 0.60 | F63: 9.20 | G63: 115.20 | H63: 0.05 | I63: 12.00 | J63: 0.00 | K63: 0.48 | L63: 9.60 | M63: 33.60 | N63: 50.40 | O63: 0.72 | P63: стр.184 табл.9 Дели +,2012г
A64: Батон высший сорт | C64: 50 | D64: 3.75 | E64: 1.45 | F64: 25.70 | G64: 131.00 | H64: 0.055 | I64: 0 | J64: 0 | K64: 0.85 | L64: 9.5 | M64: 32.5 | N64: 6.5 | O64: 0.6 | P64: стр 134 табл. 6 Дели Плюс 2012г,
A65: Итого: | C65: 660 | D65: =D64+D63+D62+D61+D60+D59+D59 -> 21.12 | E65: =SUM(E59:E64) -> 19.07 | F65: =SUM(F59:F64) -> 86.99 | G65: 665.60 | H65: =SUM(H59:H64) -> 0.31 | I65: 12.93 | J65: 223.84 | K65: 3.66 | L65: 402.18 | M65: 559.21 | N65: 128.03 | O65: 5.24
B66: 2 - ой ЗАВТРАК
A67: Крекер | C67: 20 | D67: 1.84 | E67: 2.82 | F67: 12.64 | G67: 83.20 | H67: 0.03 | I67: 0.00 | K67: 1.30 | L67: 5.20 | M67: 21.40 | N67: 5.00 | O67: 0.28
A68: Молоко кипяченное | C68: 200 | D68: 5.80 | E68: 5.00 | F68: 9.60 | G68: 107.00 | H68: 0.08 | I68: 2.60 | J68: 40.00 | L68: 240.00 | M68: 180.00 | N68: 28.00 | O68: 0.20 | P68: №385 СБ шк 2017
A69: Итого: | C69: 220 | D69: =SUM(D67:D68) -> 7.64 | E69: 7.82 | F69: 22.24 | G69: 190.20 | H69: 0.11 | I69: 2.60 | J69: 40.00 | K69: 1.30 | L69: 245.20 | M69: 201.40 | N69: 33.00 | O69: 0.48
C70: =C65+C69 -> 880 | D70: 28.34 | E70: =E65+E69 -> 26.89 | F70: =F65+F69 -> 109.23 | G70: =G65+G69 -> 855.80 | Q70: =G70/2720 -> 31.46% | R70: 30% (28,5-31,5)
B71: ОБЕД
A72: Салат из отварной свеклы с маслом растительным | C72: 100 | D72: 1.41 | E72: 6.01 | F72: 8.26 | G72: 92.80 | H72: 0.02 | I72: 6.65 | K72: 2.70 | L72: 35.46 | M72: 40.63 | N72: 20.70 | O72: 1.32 | P72: №52 сб 2017 шк
A73: Рассольник ленинградский с мясными фрикадельками, со сметаной | C73: 250/22/10 | D73: 7.43 | E73: 14.58 | F73: 23.78 | G73: 250.80 | H73: 0.10 | I73: 8.93 | J73: 22.80 | K73: 2.58 | L73: 49.74 | M73: 98.91 | N73: 29.54 | O73: 1.36 | P73: №96, 105 сб 2017 шк
A74: Рыба тушеная с овощами | C74: 75/30 | D74: 12.38 | E74: 14.53 | F74: 11.30 | G74: 225.41 | H74: 0.05 | I74: 3.80 | J74: 26.82 | K74: 2.56 | L74: 139.07 | M74: 222.19 | N74: 54.03 | O74: 0.92 | P74: №229 сб 2017 шк
A75: Пюре картофельное с капустой тушеной (доп.гарнир) | C75: 200/30 | D75: 4.698 | E75: 7.88 | F75: 43.75 | G75: 284.47 | H75: 0.20 | I75: 29.34 | J75: 0.00 | K75: 0.83 | L75: 66.93 | M75: 127.67 | N75: 43.26 | O75: 1.60 | P75: №312, 139 шк 2017 сб
A76: Напиток из шиповника (напиток из шиповника10) | C76: 200 | D76: 0.68 | E76: 0.28 | F76: 20.76 | G76: 88.20 | H76: 0.01 | I76: 100.00 | J76: 0.00 | K76: 0.76 | L76: 21.34 | M76: 3.44 | N76: 3.44 | O76: 0.63 | P76: №388 шк 2017 сб
A77: Хлеб ржаной | C77: 60 | D77: 3.96 | E77: 0.72 | F77: 23.76 | G77: 118.80 | H77: 0.10 | K77: 0.84 | L77: 17.40 | M77: 90.00 | N77: 28.20 | O77: 2.34 | P77: стр 144 табл. 6 Дели Плюс 2012г,
A78: Хлеб пшеничный | C78: 60 | D78: 4.56 | E78: 0.48 | F78: 29.52 | G78: 141.00 | H78: 0.07 | K78: 0.66 | L78: 12.00 | M78: 39.00 | N78: 8.40 | O78: 0.66 | P78: стр 134 табл. 6 Дели Плюс 2012г,
A79: Итого: | C79: 1042 | D79: 36.33 | E79: 36.65 | F79: =F78+F77+F76+F75+F73+F74 -> 152.87 | G79: =G78+G76+G75+G74+G73+G72 -> 1082.68 | H79: =SUM(H72:H78) -> 0.55 | I79: 148.72 | J79: 49.62 | K79: 10.93 | L79: 341.94 | M79: 621.83 | N79: 187.56 | O79: 8.83 | Q79: =G79/2720 -> 39.80% | R79: 40% (38-42)
A80: ВСЕГО: | C80: =C65+C69+C79 -> 1922 | D80: =D65+D69+D79 -> 65.085 | E80: 63.5369 | F80: 262.096 | G80: 1938.48 | H80: 0.9679333333 | I80: 164.2542 | J80: 313.459 | K80: 15.8904 | L80: 989.32535 | M80: 1382.448 | N80: 348.5913 | O80: 14.5541 | Q80: =G80/2720 -> 71.27% | R80: 70% (66,5-73,5%)
A82: День 4 - ый
A83: Наименование блюд и | C83: Масса | D83: Пищевые вещества | G83: Энергетическая | H83: В1,мг | I83: С,мг | J83: A,мкг | K83: Е,мг | L83: Ca | M83: P | N83: Mg | O83: Fe | P83: Сборник
A84: продуктов | C84: порции | G84: ценность | P84: рецептур
D85: белки | E85: жиры | F85: угл-ды | G85: Ккал
B86: ЗАВТРАК
A87: Бутерброд с сыром, с маслом | C87: 30/15/10 | D87: 6.28 | E87: 12.11 | F87: 15.55 | G87: 196.10 | H87: 0.04 | I87: 0.11 | J87: 71.50 | K87: 0.68 | L87: 158.10 | M87: 112.50 | N87: 12.15 | O87: 0.49 | P87: №3 сб 2017 шк
A88: Каша "Дружба" молочная | C88: 220/5 | D88: 6.41 | E88: 5.10 | F88: 41.31 | G88: 230.02 | H88: 0.11 | I88: 1.06 | J88: 36.28 | K88: 0.13 | L88: 145.28 | M88: 170.59 | N88: 40.94 | O88: 0.88 | P88: ТТК №7Д
A89: Кофейный напиток с молоком (сахар 10) | C89: 200 | D89: 3.17 | E89: 2.68 | F89: 5.97 | G89: 60.60 | H89: 0.04 | I89: 1.30 | J89: 20.00 | K89: 0.00 | L89: 125.48 | M89: 90.00 | N89: 14.00 | O89: 0.10 | P89: №379 шк 2017 сб
A90: Фрукты свежие (Яблоки) | C90: 120 | D90: 0.48 | E90: 0.48 | F90: 11.76 | G90: 56.40 | H90: 0.036 | I90: 12 | J90: 0 | K90: 0.24 | L90: 19.2 | M90: 13.2 | N90: 10.8 | O90: 2.64 | P90: №338 сб 2017 шк
A91: Батон высший сорт | C91: 50 | D91: 3.75 | E91: 1.45 | F91: 25.70 | G91: 131.00 | H91: 0.06 | I91: 0.00 | J91: 0.00 | K91: 0.85 | L91: 9.50 | M91: 32.50 | N91: 6.50 | O91: 0.60 | P91: стр 134 табл. 6 Дели Плюс 2012г,
A92: Итого: | C92: 650 | D92: =SUM(D87:D91) -> 20.08 | E92: 21.82 | F92: 100.29 | G92: 674.12 | H92: 0.28 | I92: 14.46 | J92: 127.78 | K92: 1.90 | L92: 457.56 | M92: 418.79 | N92: 84.39 | O92: 4.71
B93: 2 - ой ЗАВТРАК
A94: Катык | C94: 200 | D94: 5.80 | E94: 5.00 | F94: 9.60 | G94: 107.00 | H94: 0.04 | I94: 0.06 | J94: 36.00 | K94: 0.00 | L94: 223.20 | M94: 165.60 | N94: 25.20 | O94: 0.18 | P94: №386 шк 2017 сб
A95: Итого: | C95: 200 | D95: =SUM(D94) -> 5.80 | E95: 5.00 | F95: 9.60 | G95: 107.00 | H95: 0.04 | I95: 0.06 | J95: 36.00 | K95: 0.00 | L95: 223.20 | M95: 165.60 | N95: 25.20 | O95: 0.18
C96: =C92+C95 -> 850.00 | D96: 25.88 | E96: 26.82 | F96: 109.89 | G96: 781.12 | H96: 0.32 | I96: 14.52 | J96: 163.78 | K96: 1.90 | L96: 680.76 | M96: 584.39 | N96: 109.59 | O96: 4.89 | P96: 0.00 | Q96: =G96/2720 -> 28.72% | R96: 30% (28,5-31,5)
B97: ОБЕД
A98: Зеленый горошек к/с доп. гарнир | C98: 50 | D98: 1.55 | E98: 0.10 | F98: 3.25 | G98: 20.00 | H98: 0.06 | I98: 5.00 | J98: 0.00 | K98: 0.10 | L98: 10.00 | M98: 31.00 | N98: 10.50 | O98: 0.35 | P98: №10 дошк 2016 сб
A99: Суп - лапша домашняя на курином бульоне с мясом птицы | C99: 250/10 | D99: 11.74 | E99: 15.36 | F99: 31.66 | G99: 330.75 | H99: 0.05 | I99: 0.74 | J99: 18.32 | K99: 2.67 | L99: 33.91 | M99: 54.90 | N99: 12.70 | O99: 0.84 | P99: №113 шк 2017 сб
A100: Овощи тушеные с говяжьим фаршем | C100: 50/200 | D100: 15.01 | E100: 21.81 | F100: 44.85 | G100: 337.95 | H100: 0.05 | I100: 20.52 | J100: 44.25 | K100: 1.07 | L100: 72.31 | M100: 178.17 | N100: 41.23 | O100: 2.17 | P100: №143, 241 шк 2017 сб
A101: Нектар плодовый (разливной) | C101: 200 | D101: 1.00 | E101: 0.00 | F101: 20.20 | G101: 84.80 | H101: 0.02 | I101: 4.00 | J101: 0.00 | K101: 0.20 | L101: 14.00 | M101: 14.00 | N101: 8.00 | O101: 2.80 | P101: №389 сб 2017 шк
A102: Хлеб ржаной | C102: 60 | D102: 3.96 | E102: 0.72 | F102: 23.76 | G102: 118.80 | H102: 0.10 | K102: 0.84 | L102: 17.40 | M102: 90.00 | N102: 28.20 | O102: 2.34 | P102: стр 144 табл. 6 Дели Плюс 2012г,
A103: Хлеб пшеничный | C103: 60 | D103: 4.56 | E103: 0.48 | F103: 29.52 | G103: 141.00 | H103: 0.07 | K103: 0.66 | L103: 12.00 | M103: 39.00 | N103: 8.40 | O103: 0.66 | P103: стр 134 табл. 6 Дели Плюс 2012г,
A104: Итого: | C104: 880 | D104: =D103+D102+D101+D100+D99 -> 36.27 | E104: 36.47 | F104: =SUM(F98:F103) -> 153.24 | G104: 1033.30 | H104: 0.35 | I104: 30.25 | J104: 62.57 | K104: 5.54 | L104: 159.62 | M104: 407.07 | N104: 109.03 | O104: 9.15 | Q104: =G104/2720 -> 37.99% | R104: 40% (38-42)
A105: ВСЕГО: | C105: =C92+C95+C104 -> 1730.00 | D105: =D92+D95+D104 -> 62.15 | E105: 63.29 | F105: 263.13 | G105: 1814.42 | H105: 0.67 | I105: 44.78 | J105: 226.35 | K105: 7.43 | L105: 840.38 | M105: 991.46 | N105: 218.63 | O105: 14.04 | Q105: =G105/2720 -> 66.71% | R105: 70% (66,5-73,5%)
A107: День 5 - ый
A108: Наименование блюд и | C108: Масса | D108: Пищевые вещества | G108: Энергетическая | H108: В1,мг | I108: С,мг | J108: A,мкг | K108: Е,мг | L108: Ca | M108: P | N108: Mg | O108: Fe | P108: Сборник
A109: продуктов | C109: порции | G109: ценность | P109: рецептур
D110: белки | E110: жиры | F110: угл-ды | G110: Ккал
B111: ЗАВТРАК
A112: Бутерброд с маслом | C112: 30/10 | D112: 2.33 | E112: 8.12 | F112: 15.55 | G112: 144.60 | H112: 0.03 | I112: 0.00 | J112: 40.00 | K112: 0.62 | L112: 8.10 | M112: 22.50 | N112: 3.90 | O112: 0.38 | P112: №1 сб 2017 шк
A113: Каша манная молочная | C113: 200/5 | D113: 10.73 | E113: 8.91 | F113: 21.20 | G113: 218.00 | H113: 0.08 | I113: 1.17 | J113: 38.00 | K113: 0.46 | L113: 132.57 | M113: 116.69 | N113: 20.30 | O113: 0.46 | P113: №181 сб 2017 шк
A114: Яйцо отварное | C114: 50 | D114: 4.35 | E114: 1.00 | F114: 0.35 | G114: 62.50 | H114: 0.04 | I114: 0.00 | J114: 125.00 | K114: 0.30 | L114: 27.50 | M114: 96.00 | N114: 6.00 | O114: 1.25 | P114: №209 сб шк2017
A115: Чай с молоком, с сахаром | C115: 150/40/10 | D115: 1.46 | E115: 1.08 | F115: 11.96 | G115: 63.70 | H115: 0.02 | I115: 0.67 | J115: 8.00 | K115: 0.00 | L115: 63.02 | M115: 48.36 | N115: 12.20 | O115: 1.30 | P115: №378 СБ шк 2017
A116: Фрукты свежие (Яблоки) | C116: 120 | D116: 0.48 | E116: 0.48 | F116: 11.76 | G116: 56.40 | H116: 0.04 | I116: 12.00 | J116: 0.00 | K116: 0.24 | L116: 19.20 | M116: 13.20 | N116: 10.80 | O116: 2.64 | P116: №338 сб 2017 шк
A117: Батон высший сорт | C117: 50 | D117: 3.75 | E117: 1.45 | F117: 25.70 | G117: 131.00 | H117: 0.06 | I117: 0.00 | J117: 0.00 | K117: 0.85 | L117: 9.50 | M117: 32.50 | N117: 6.50 | O117: 0.60 | P117: стр 134 табл. 6 Дели Плюс 2012г,
A118: Итого: | C118: 610 | D118: =D117+D116+D115+D114+D113+D112+D115+D116 -> 25.04 | E118: 27.04 | F118: =F117+F116+F115+F114+F113+F112+F115 -> 98.48 | G118: =G117+G116+G115+G114+G113+G112+G116 -> 732.60 | H118: =SUM(H112:H117) -> 0.26 | I118: 13.84 | J118: 211.00 | K118: 2.47 | L118: 259.89 | M118: 329.25 | N118: 59.70 | O118: 6.63
B119: 2 - ой ЗАВТРАК
A120: Нектар плодовый (разливной) | C120: 200 | D120: 1.00 | E120: 0.00 | F120: 20.20 | G120: 84.80 | H120: 0.02 | I120: 4.00 | J120: 0.00 | K120: 0.20 | L120: 14.00 | M120: 14.00 | N120: 8.00 | O120: 2.80 | P120: №389 сб 2017 шк
A121: Итого: | C121: 200 | D121: =D120 -> 1.00 | E121: =E120 -> 0.00 | F121: =F120 -> 20.20 | G121: =G120 -> 84.80 | H121: 0.02 | I121: 4.00 | J121: 0.00 | K121: 0.20 | L121: 14.00 | M121: 14.00 | N121: 8.00 | O121: 2.80
C122: =C118+C121 -> 810.00 | D122: =D118+D121 -> 26.04 | E122: =E118+E121 -> 27.04 | F122: =F118+F121 -> 118.68 | G122: =G118+G121 -> 817.40 | Q122: =G122/2720 -> 30.05% | R122: 30% (28,5-31,5)
B123: ОБЕД
A124: Салат из белокачаной капусты с морковью | C124: 100 | D124: 1.31 | E124: 3.25 | F124: 6.47 | G124: 60.40 | H124: 0.02 | I124: 17.10 | J124: 0.00 | K124: 8.39 | L124: 24.97 | M124: 28.31 | N124: 15.09 | O124: 0.47 | P124: №45 сб 2017 шк
A125: Суп картофельный с мясными фрикадельками | C125: 250/22 | D125: 7.49 | E125: 14.00 | F125: 16.94 | G125: 171.64 | H125: 0.14 | I125: 12.52 | J125: 12.80 | K125: 1.48 | L125: 42.24 | M125: 113.81 | N125: 35.86 | O125: 1.61 | P125: №97 шк 2017 сб
A126: Биточки рыбные из минтая | C126: 100 | D126: 11.81 | E126: 8.20 | F126: 11.40 | G126: 190.00 | H126: 0.08 | I126: 0.66 | J126: 9.40 | K126: 5.02 | L126: 71.88 | M126: 185.46 | N126: 41.14 | O126: 1.46 | P126: № 234 шк 2017 сб
A127: Макаронные изделия с овощами | C127: 180 | D127: 6.21 | E127: 7.19 | F127: 34.23 | G127: 226.08 | H127: 0.09 | I127: 3.25 | J127: 0.00 | K127: 3.77 | L127: 23.30 | M127: 61.06 | N127: 20.81 | O127: 1.24 | P127: №205 сб 2017 шк
A128: Компот из свежих яблок (сахар 10) | C128: 200 | D128: 0.16 | E128: 0.16 | F128: 27.88 | G128: 114.60 | H128: 0.01 | I128: 0.90 | J128: 0.00 | K128: 0.08 | L128: 14.18 | M128: 4.40 | N128: 5.14 | O128: 0.95 | P128: №342 сб 2017 шк
A129: Хлеб ржаной | C129: 60 | D129: 3.96 | E129: 0.72 | F129: 23.76 | G129: 118.80 | H129: 0.10 | K129: 0.84 | L129: 17.40 | M129: 90.00 | N129: 28.20 | O129: 2.34 | P129: стр 144 табл. 6 Дели Плюс 2012г,
A130: Хлеб пшеничный | C130: 60 | D130: 4.56 | E130: 0.48 | F130: 29.52 | G130: 141.00 | H130: 0.07 | K130: 0.66 | L130: 12.00 | M130: 39.00 | N130: 8.40 | O130: 0.66 | P130: стр 134 табл. 6 Дели Плюс 2012г,
A131: Итого: | C131: 972 | D131: =SUM(D124:D130) -> 35.50 | E131: 33.99 | F131: 150.20 | G131: 1022.52 | H131: 0.51 | I131: 34.43 | J131: 22.20 | K131: 20.24 | L131: 205.97 | M131: 522.03 | N131: 154.64 | O131: 8.73 | Q131: =G131/2720 -> 37.59% | R131: 40% (38-42)
A132: ВСЕГО: | C132: =C118+C121+C131 -> 1782.00 | D132: =D118+D121+D131 -> 61.54 | E132: 61.03 | F132: 268.88 | G132: 1839.92 | H132: 0.79 | I132: 52.27 | J132: 233.20 | K132: 22.91 | L132: 479.86 | M132: 865.28 | N132: 222.34 | O132: 18.16 | Q132: =G132/2720 -> 67.64% | R132: 70% (66,5-73,5%)
A135: День 6 - ый
A136: Наименование блюд и | C136: Масса | D136: Пищевые вещества | G136: Энергетическая | H136: В1,мг | I136: С,мг | J136: A,мкг | K136: Е,мг | L136: Ca | M136: P | N136: Mg | O136: Fe | P136: Сборник
A137: продуктов | C137: порции | G137: ценность | P137: рецептур
D138: белки | E138: жиры | F138: угл-ды | G138: Ккал
B139: ЗАВТРАК
A140: Бутерброд с маслом | C140: 30/10 | D140: 2.33 | E140: 8.12 | F140: 15.55 | G140: 144.60 | H140: 0.03 | I140: 0.00 | J140: 40.00 | K140: 0.62 | L140: 8.10 | M140: 22.50 | N140: 3.90 | O140: 0.38 | P140: №1 сб 2017 шк
A141: Каша кукурузная молочная | C141: 180 | D141: 6.90 | E141: 4.79 | F141: 31.91 | G141: 197.30 | H141: 0.08 | I141: 0.86 | J141: 13.32 | K141: 0.26 | L141: 122.46 | M141: 135.55 | N141: 28.45 | O141: 1.49 | P141: №174 сб 2017 шк
A142: Блины с маслом сливочным | C142: 45/5 | D142: 2.43 | E142: 0.95 | F142: 11.60 | G142: 99.14 | H142: 0.05 | I142: 0.00 | J142: 29.14 | K142: 0.73 | L142: 11.01 | M142: 29.90 | N142: 8.59 | O142: 0.50 | P142: ТТК №656 от 28.04.2020
A143: Какао с молоком(сахар)10 | C143: 200 | D143: 4.08 | E143: 3.81 | F143: 7.60 | G143: 78.60 | H143: 0.06 | I143: 1.59 | J143: 24.40 | K143: 0.00 | L143: 151.92 | M143: 124.56 | N143: 21.34 | O143: 0.45 | P143: №382 сб шк 2017
A144: Фрукты свежие (Банан) | C144: 120 | D144: 1.80 | E144: 0.60 | F144: 9.20 | G144: 115.20 | H144: 0.05 | I144: 12.00 | J144: 0.00 | K144: 0.48 | L144: 9.60 | M144: 33.60 | N144: 50.40 | O144: 0.72 | P144: стр.184 табл.9 Дели +,2012г
A145: Батон высший сорт | C145: 50 | D145: 3.75 | E145: 1.45 | F145: 25.70 | G145: 131.00 | H145: 0.06 | I145: 0.00 | J145: 0.00 | K145: 0.85 | L145: 9.50 | M145: 32.50 | N145: 6.50 | O145: 0.60 | P145: стр 134 табл. 6 Дели Плюс 2012г,
A146: Итого: | C146: 640 | D146: =SUM(D140:D145) -> 21.28 | E146: =E145+E144+E143+E142+E141+E140+E143 -> 23.53 | F146: 101.56 | G146: =G145+G144+G142+G141+G140 -> 687.24 | H146: 0.32 | I146: 14.45 | J146: 106.86 | K146: 2.94 | L146: 312.59 | M146: 378.61 | N146: 119.18 | O146: 4.14
B147: 2 - ой ЗАВТРАК
A148: Ряженка | C148: 200 | D148: 5.80 | E148: 5.00 | F148: 8.40 | G148: 102.00 | H148: 0.04 | I148: 0.60 | J148: 28.00 | L148: 248.00 | M148: 184.00 | N148: 28.00 | O148: 0.20 | P148: №386 шк 2017 сб
A149: Итого: | C149: 200 | D149: =SUM(D148) -> 5.80 | E149: 5.00 | F149: 8.40 | G149: 102.00 | H149: 0.04 | I149: 0.60 | J149: 28.00 | K149: 0.00 | L149: 248.00 | M149: 184.00 | N149: 28.00 | O149: 0.20
C150: =C146+C149 -> 840.00 | D150: =D146+D149 -> 27.08 | E150: =E146+E149 -> 28.53 | F150: =F146+F149 -> 109.96 | G150: =G146+G149 -> 789.24 | Q150: =G150/2720 -> 29.02% | R150: 30% (28,5-31,5)
B151: ОБЕД
A152: Салат из моркови | C152: 100 | D152: 1.23 | E152: 0.09 | F152: 11.48 | G152: 81.70 | H152: 0.06 | I152: 3.36 | J152: 0.00 | K152: 13.40 | L152: 25.76 | M152: 52.77 | N152: 36.05 | O152: 0.66 | P152: №62 сб 2017шк
A153: Суп из овощей на курином бульоне с мясными фрикадельками, со сметаной | C153: 250/22/10 | D153: 7.50 | E153: 14.57 | F153: 15.58 | G153: 221.90 | H153: 0.08 | I153: 10.93 | J153: 22.80 | K153: 2.56 | L153: 55.44 | M153: 91.46 | N153: 26.11 | O153: 1.21 | P153: №99 шк 2017 сб
A154: Плов из куриных грудок | C154: 250 | D154: 16.52 | E154: 19.80 | F154: 52.80 | G154: 443.33 | H154: 0.18 | I154: 8.17 | J154: 35.00 | K154: 0.68 | L154: 45.12 | M154: 236.67 | N154: 67.42 | O154: 2.33 | P154: №291 шк 2017 сб
A155: Нектар плодовый (разливной) | C155: 200 | D155: 1.00 | E155: 0.00 | F155: 20.20 | G155: 84.80 | H155: 0.02 | I155: 4.00 | J155: 0.00 | K155: 0.20 | L155: 14.00 | M155: 14.00 | N155: 8.00 | O155: 2.80 | P155: №389 сб 2017 шк
A156: Хлеб ржаной | C156: 60 | D156: 3.96 | E156: 0.72 | F156: 23.76 | G156: 118.80 | H156: 0.10 | K156: 0.84 | L156: 17.40 | M156: 90.00 | N156: 28.20 | O156: 2.34 | P156: стр 144 табл. 6 Дели Плюс 2012г,
A157: Хлеб пшеничный | C157: 60 | D157: 4.56 | E157: 0.48 | F157: 29.52 | G157: 141.00 | H157: 0.07 | K157: 0.66 | L157: 12.00 | M157: 39.00 | N157: 8.40 | O157: 0.66 | P157: стр 134 табл. 6 Дели Плюс 2012г,
A158: Итого: | C158: 952 | D158: =SUM(D152:D157) -> 34.77 | E158: 35.66 | F158: 153.34 | G158: 1091.53 | H158: 0.51 | I158: 26.46 | J158: 57.80 | K158: 18.34 | L158: 169.72 | M158: 523.89 | N158: 174.18 | O158: 10.01 | Q158: =G158/2720 -> 40.13% | R158: 40% (38-42)
A159: ВСЕГО: | C159: =C146+C149+C158 -> 1792.00 | D159: =D146+D149+D158 -> 61.86 | E159: 64.19 | F159: 263.29 | G159: 1880.77 | H159: 0.88 | I159: 41.51 | J159: 192.66 | K159: 21.28 | L159: 730.31 | M159: 1086.50 | N159: 321.35 | O159: 14.35 | Q159: =G159/2720 -> 69.15% | R159: 70% (66,5-73,5%)
A161: День 7 - ой
A162: Наименование блюд и | C162: Масса | D162: Пищевые вещества | G162: Энергетическая | H162: В1,мг | I162: С,мг | J162: A,мкг | K162: Е,мг | L162: Ca | M162: P | N162: Mg | O162: Fe | P162: Сборник
A163: продуктов | C163: порции | G163: ценность | P163: рецептур
D164: белки | E164: жиры | F164: угл-ды | G164: Ккал
B165: ЗАВТРАК
A166: Бутерброд с сыром, с маслом | C166: 30/15/10 | D166: 6.28 | E166: 12.11 | F166: 15.55 | G166: 196.10 | H166: 0.04 | I166: 0.11 | J166: 71.50 | K166: 0.68 | L166: 158.10 | M166: 112.50 | N166: 12.15 | O166: 0.49 | P166: №3 сб 2017 шк
A167: Запеканка творожная с молоком сгущенным | C167: 170/30 | D167: 8.10 | E167: 7.85 | F167: 14.88 | G167: 205.88 | H167: 0.12 | I167: 0.74 | J167: 154.70 | K167: 0.99 | L167: 345.03 | M167: 425.05 | N167: 50.29 | O167: 1.45 | P167: №223 СБ 2017 шк
A168: Чай с сахаром с лимоном | C168: 185/10/5 | D168: 0.13 | E168: 0.02 | F168: 10.20 | G168: 42.00 | H168: 0.12 | I168: 2.00 | J168: 51.70 | K168: 4.02 | L168: 34.97 | M168: 301.50 | N168: 52.71 | O168: 3.56 | P168: №377 СБ 2017,шк
A169: Фрукты свежие (Яблоки) | C169: 120 | D169: 0.48 | E169: 0.48 | F169: 11.76 | G169: 56.40 | H169: 0.036 | I169: 12 | J169: 0 | K169: 0.24 | L169: 19.2 | M169: 13.2 | N169: 10.8 | O169: 2.64 | P169: №338 сб 2017 шк
A170: Батон высший сорт | C170: 50 | D170: 3.75 | E170: 1.45 | F170: 25.70 | G170: 131.00 | H170: 0.055 | I170: 0 | J170: 0 | K170: 0.85 | L170: 9.5 | M170: 32.5 | N170: 6.5 | O170: 0.6 | P170: стр 134 табл. 6 Дели Плюс 2012г,
A171: Итого: | C171: 625 | D171: 19.89 | E171: 21.29 | F171: 99.60 | G171: 669.20 | H171: =SUM(H166:H170) -> 0.37 | I171: 14.85 | J171: 277.90 | K171: 6.77 | L171: 566.80 | M171: 884.75 | N171: 132.45 | O171: 8.73
B172: 2 - ой ЗАВТРАК
A173: Молоко кипяченное | C173: 200 | D173: 5.80 | E173: 5.00 | F173: 9.60 | G173: 107.00 | H173: 0.08 | I173: 2.60 | J173: 40.00 | L173: 240.00 | M173: 180.00 | N173: 28.00 | O173: 0.20 | P173: №385 СБ шк 2017
A174: Итого: | C174: =C173 -> 200 | D174: =D173 -> 5.8 | E174: =E173 -> 5 | F174: =F173 -> 9.6 | G174: =G173 -> 107 | H174: =SUM(H173:H173) -> 0.08 | I174: 2.60 | J174: 40.00 | K174: 0.00 | L174: 240.00 | M174: 180.00 | N174: 28.00 | O174: 0.20
C175: =C171+C174 -> 825.00 | D175: =D171+D174 -> 25.69 | E175: =E171+E174 -> 26.29 | F175: =F171+F174 -> 109.20 | G175: =G171+G174 -> 776.20 | Q175: =G175/2720 -> 28.54% | R175: 30% (28,5-31,5)
B176: ОБЕД
A177: Огурцы соленые (доп гарнир) | C177: 50 | D177: 0.40 | E177: 0.05 | F177: 0.85 | G177: 5.00 | H177: 0.01 | I177: 1.75 | K177: 0.05 | L177: 11.50 | M177: 12.00 | N177: 7.00 | O177: 0.30 | P177: №70 СБ шк 2017
A178: Суп гороховый с фрикадельками из птицы и гренками | C178: 250/11/10 | D178: 3.98 | E178: 6.02 | F178: 20.23 | G178: 179.80 | H178: 0.27 | I178: 0.91 | J178: 4.35 | K178: 18.03 | L178: 51.07 | M178: 101.42 | N178: 36.39 | O178: 2.58 | P178: №119 шк 2017 сб
A179: Котлета из говядины с маслом сливочным | C179: 100/3 | D179: 16.87 | E179: 15.56 | F179: 16.49 | G179: 244.78 | H179: 0.08 | I179: 1.20 | J179: 19.03 | K179: 2.90 | L179: 15.81 | M179: 167.71 | N179: 27.94 | O179: 2.60 | P179: №271 шк 2017 сб
A180: Картофель запеченный дольками | C180: 200 | D180: 5.44 | E180: 11.76 | F180: 42.16 | G180: 304.00 | H180: 0.28 | I180: 29.00 | J180: 0.00 | K180: 9.00 | L180: 28.50 | M180: 141.58 | N180: 53.72 | O180: 1.98 | P180: №314 сб 2017 шк
A181: Компот из сухофруктов (сахар 10) | C181: 200 | D181: 0.66 | E181: 0.09 | F181: 22.03 | G181: 92.80 | H181: 0.02 | I181: 0.73 | J181: 0.00 | K181: 0.51 | L181: 32.18 | M181: 23.44 | N181: 17.46 | O181: 0.67 | P181: №349 сб шк 2017
A182: Хлеб ржаной | C182: 60 | D182: 3.96 | E182: 0.72 | F182: 23.76 | G182: 118.80 | H182: 0.10 | K182: 0.84 | L182: 17.40 | M182: 90.00 | N182: 28.20 | O182: 2.34 | P182: стр 144 табл. 6 Дели Плюс 2012г,
A183: Хлеб пшеничный | C183: 60 | D183: 4.56 | E183: 0.48 | F183: 29.52 | G183: 141.00 | H183: 0.07 | K183: 0.66 | L183: 12.00 | M183: 39.00 | N183: 8.40 | O183: 0.66 | P183: стр 134 табл. 6 Дели Плюс 2012г,
A184: Итого: | C184: 944 | D184: =SUM(D177:D183) -> 35.87 | E184: =SUM(E177:E183)+E182 -> 35.40 | F184: =F183+F182+F181+F180+F179+F178 -> 154.19 | G184: =SUM(G177:G183) -> 1086.18 | H184: 0.82 | I184: 33.59 | J184: 23.38 | K184: 31.99 | L184: 168.46 | M184: 575.15 | N184: 179.11 | O184: 11.12 | Q184: =G184/2720 -> 39.93% | R184: 40% (38-42)
A185: ВСЕГО: | C185: =C171+C174+C184 -> 1769.00 | D185: =D171+D174+D184 -> 61.56 | E185: 61.69 | F185: 263.39 | G185: 1862.38 | H185: 1.28 | I185: 51.03 | J185: 341.28 | K185: 38.76 | L185: 975.26 | M185: 1639.90 | N185: 339.56 | O185: 20.06 | Q185: =G185/2720 -> 68.47% | R185: 70% (66,5-73,5%)
A186: ВСЕГО ЗА 7 ДЕНЬ | C186: =C185+C159+C132+C105+C80+C52+C26 -> 12517.00 | D186: 432.55 | E186: 440.49 | F186: 1859.77 | G186: 13147.99 | H186: 6.29 | I186: 438.88 | J186: 1755.87 | K186: 156.82 | L186: 5381.52 | M186: 8066.73 | N186: 1984.29 | O186: 118.03
A187: В среднем на 1 учащегося в день | C187: =C186/7 -> 1788 | D187: =D186/7 -> 61.79 | E187: 62.93 | F187: 265.68 | G187: 1878.28 | H187: 0.90 | I187: 62.70 | J187: 250.84 | K187: 22.40 | L187: 768.79 | M187: 1152.39 | N187: 283.47 | O187: 16.86
